Workbook

Sheet Orçamento
O3: UNIDADE ESCOLAR | V3: CÓDIGO INEP
O4: CENTRO DE ENSINO EM PERÍODO INTEGRAL PEDRO XAVIER TEIXEIRA | V4: 52033562
A6: Nmax | O6: OBRA | S6: DATA | V6: CIDADE
A7: =MAX($C$18:$C$431) -> 4 | O7: REFORMA | S7: 2020-03-25 | V7: GOIÂNIA
O9: CRE | R9: ENDEREÇO | V9: REFERÊNCIA AGETOP
O10: GOIÂNIA | R10: RUA 1027 Nº 70 70, SETOR PEDRO LUDOVICO, CEP:74825-040 | V10: DEZ/18 | W10: ONERADA
O12: ÁREA EXISTENTE (M²) | R12: ÁREA A CONSTRUIR (M²) | S12: ÁREA TOTAL CONSTRUÍDA (M²) | V12: REFERÊNCIA SINAPI
O13: 4083.99 | S13: 4083.99 | V13: AGO/19 | W13: ONERADA
L15: FILTRO | O15: PLANILHA ORÇAMENTÁRIA
A16: Nível E | B16: Save Nivel | C16: Nível C | D16: Altura | E16: n1 | F16: n2 | G16: n3 | H16: n4 | I16: n5 | J16: Czero | K16: Cnível | L16: ↓ | M16: Nível | N16: Nível Corrigido | O16: ITEM | P16: TABELA | Q16: CODIGO | R16: DESCRIÇÃO DOS SERVIÇOS | S16: UNID | T16: QUANT | U16: MAT | V16: MO | W16: T.SERVIÇO | X16: OBSERVAÇÕES¹
A17: =CHOOSE(1+LOG(1+2*(ORÇAMENTO.Nivel="Nível 1")+4*(ORÇAMENTO.Nivel="Nível 2")+8*(ORÇAMENTO.Nivel="Nível 3")+16*(ORÇAMENTO.Nivel="Nível 4")+32*(ORÇAMENTO.Nivel="Serviço"),2),0,1,2,3,4,"S") -> S | B17: =IF(OR(C17="s",C17=0),OFFSET(B17,-1,0),C17) -> Save Nivel | C17: =IF(OFFSET(C17,-1,0)="L",1,IF(OFFSET(C17,-1,0)=1,2,IF(OR(A17="s",A17=0),"S",IF(AND(OFFSET(C17,-1,0)=2,A17=4),3,IF(AND(OR(OFFSET(C17,-1,0)="s",OFFSET(C17,-1,0)=0),A17<>"s",A17>OFFSET(B17,-1,0)),OFFSET(B17,-1,0),A17))))) -> S | D17: =IF(OR(C17="S",C17=0),0,IF(ISERROR(K17),J17,SMALL(J17:K17,1))) -> 0 | E17: =IF($C17=1,OFFSET(E17,-1,0)+1,OFFSET(E17,-1,0)) -> n1 | F17: =IF($C17=1,0,IF($C17=2,OFFSET(F17,-1,0)+1,OFFSET(F17,-1,0))) -> n2 | G17: =IF(AND($C17<=2,$C17<>0),0,IF($C17=3,OFFSET(G17,-1,0)+1,OFFSET(G17,-1,0))) -> n3 | H17: =IF(AND($C17<=3,$C17<>0),0,IF($C17=4,OFFSET(H17,-1,0)+1,OFFSET(H17,-1,0))) -> n4 | I17: =IF(AND($C17<=4,$C17<>0),0,IF(AND($C17="S",$W17>0),OFFSET(I17,-1,0)+1,OFFSET(I17,-1,0))) -> n5 | J17: =IF(OR($C17="S",$C17=0),0,MATCH(0,OFFSET($D17,1,$C17,ROW($C$431)-ROW($C17)),0)) -> 0 | K17: =IF(OR($C17="S",$C17=0),0,MATCH(OFFSET($D17,0,$C17)+1,OFFSET($D17,1,$C17,ROW($C$431)-ROW($C17)),0)) -> 0 | L17: =IF(OR(W17>0,$C17=1),"F","") ->  | M17: Serviço | N17: Serviço | O17: - | P17: AGETOP | R17: (sem código) | S17: - | U17: 0 | V17: 0 | W17: 0
A18: 0 | C18: L | D18: =COUNTA(OFFSET(D18,1,0):D$431) -> 412 | E18: =LEFT(O19,1)-1 -> 0 | L18: F | M18: LOTE | N18: LOTE | O18: REFORMA - CENTRO DE ENSINO EM PERÍODO INTEGRAL PEDRO XAVIER TEIXEIRA | W18: 0
A19: 1 | B19: =IF(OR(C19="s",C19=0),OFFSET(B19,-1,0),C19) -> 1 | C19: =IF(OFFSET(C19,-1,0)="L",1,IF(OFFSET(C19,-1,0)=1,2,IF(OR(A19="s",A19=0),"S",IF(AND(OFFSET(C19,-1,0)=2,A19=4),3,IF(AND(OR(OFFSET(C19,-1,0)="s",OFFSET(C19,-1,0)=0),A19<>"s",A19>OFFSET(B19,-1,0)),OFFSET(B19,-1,0),A19))))) -> 1 | D19: =IF(OR(C19="S",C19=0),0,IF(ISERROR(K19),J19,SMALL(J19:K19,1))) -> 412 | E19: =IF($C19=1,OFFSET(E19,-1,0)+1,OFFSET(E19,-1,0)) -> 1 | F19: =IF($C19=1,0,IF($C19=2,OFFSET(F19,-1,0)+1,OFFSET(F19,-1,0))) -> 0 | G19: =IF(AND($C19<=2,$C19<>0),0,IF($C19=3,OFFSET(G19,-1,0)+1,OFFSET(G19,-1,0))) -> 0 | H19: =IF(AND($C19<=3,$C19<>0),0,IF($C19=4,OFFSET(H19,-1,0)+1,OFFSET(H19,-1,0))) -> 0 | I19: 0 | J19: =IF(OR($C19="S",$C19=0),0,MATCH(0,OFFSET($D19,1,$C19,ROW($C$431)-ROW($C19)),0)) -> 412 | K19: =IF(OR($C19="S",$C19=0),0,MATCH(OFFSET($D19,0,$C19)+1,OFFSET($D19,1,$C19,ROW($C$431)-ROW($C19)),0)) ->  | L19: =IF(OR(W19>0,$C19=1),"F","") -> F | M19: Nível 1 | N19: Nível 1 | O19: 1. | P19: AGETOP | R19: REFORMA | W19: 0
A20: 2 | B20: =IF(OR(C20="s",C20=0),OFFSET(B20,-1,0),C20) -> 2 | C20: =IF(OFFSET(C20,-1,0)="L",1,IF(OFFSET(C20,-1,0)=1,2,IF(OR(A20="s",A20=0),"S",IF(AND(OFFSET(C20,-1,0)=2,A20=4),3,IF(AND(OR(OFFSET(C20,-1,0)="s",OFFSET(C20,-1,0)=0),A20<>"s",A20>OFFSET(B20,-1,0)),OFFSET(B20,-1,0),A20))))) -> 2 | D20: =IF(OR(C20="S",C20=0),0,IF(ISERROR(K20),J20,SMALL(J20:K20,1))) -> 44 | E20: =IF($C20=1,OFFSET(E20,-1,0)+1,OFFSET(E20,-1,0)) -> 1 | F20: =IF($C20=1,0,IF($C20=2,OFFSET(F20,-1,0)+1,OFFSET(F20,-1,0))) -> 1 | G20: =IF(AND($C20<=2,$C20<>0),0,IF($C20=3,OFFSET(G20,-1,0)+1,OFFSET(G20,-1,0))) -> 0 | H20: =IF(AND($C20<=3,$C20<>0),0,IF($C20=4,OFFSET(H20,-1,0)+1,OFFSET(H20,-1,0))) -> 0 | I20: 0 | J20: 411 | K20: 44 | M20: Nível 2 | N20: Nível 2 | O20: - | P20: AGETOP | R20: SERVIÇOS PRELIMINARES | W20: 0
A21: 3 | B21: 3 | C21: 3 | D21: 2 | E21: 1 | F21: 1 | G21: 1 | H21: 0 | I21: 0 | J21: 43 | K21: 2 | M21: Nível 3 | N21: Nível 3 | O21: - | P21: SINAPI | R21: ACESSIBILIDADE CALÇADA | S21: - | W21: 0
A22: S | B22: 3 | C22: S | D22: 0 | E22: 1 | F22: 1 | G22: 1 | H22: 0 | I22: 0 | J22: 0 | K22: 0 | M22: Serviço | N22: Serviço | O22: - | P22: AGETOP | Q22: 20121 | R22: DEM. MANUAL EM CONCR.SIMPLES C/TR.ATE CB.E CARGA (O.C.) | S22: m3 | T22: 95.0425 | W22: 0
A23: 3 | B23: 3 | C23: 3 | D23: 10 | E23: 1 | F23: 1 | G23: 2 | H23: 0 | I23: 0 | J23: 41 | K23: 10 | M23: Nível 3 | N23: Nível 3 | O23: - | P23: SINAPI | R23: BANHEIROSS / VESTIÁRIOS | S23: - | W23: 0
A24: S | B24: 3 | C24: S | D24: 0 | E24: 1 | F24: 1 | G24: 2 | H24: 0 | I24: 0 | J24: 0 | K24: 0 | M24: Serviço | N24: Serviço | O24: - | P24: SINAPI | Q24: 97622 | R24: DEMOLIÇÃO DE ALVENARIA DE BLOCO FURADO, DE FORMA MANUAL, SEM REAPROVEITAMENTO. AF_12/2017 | S24: M3 | T24: 7.899 | W24: 0 | X24: Referência: AGETOP - 20118
A25: S | B25: 3 | C25: S | D25: 0 | E25: 1 | F25: 1 | G25: 2 | H25: 0 | I25: 0 | J25: 0 | K25: 0 | M25: Serviço | N25: Serviço | O25: - | P25: AGETOP | Q25: 20139 | R25: DEMOLIÇAO DE BANCADAS C/ TRANSP. ATÉ CB. E CARGA | S25: m2 | T25: 3.6 | W25: 0
A26: S | B26: 3 | C26: S | D26: 0 | E26: 1 | F26: 1 | G26: 2 | H26: 0 | I26: 0 | J26: 0 | K26: 0 | M26: Serviço | N26: Serviço | O26: - | P26: SINAPI | Q26: 97633 | R26: DEMOLIÇÃO DE REVESTIMENTO CERÂMICO, DE FORMA MANUAL, SEM REAPROVEITAMENTO. AF_12/2017 | S26: M2 | T26: 255.13 | W26: 0 | X26: Referência: AGETOP - 20115
A27: S | B27: =IF(OR(C27="s",C27=0),OFFSET(B27,-1,0),C27) -> 3 | C27: =IF(OFFSET(C27,-1,0)="L",1,IF(OFFSET(C27,-1,0)=1,2,IF(OR(A27="s",A27=0),"S",IF(AND(OFFSET(C27,-1,0)=2,A27=4),3,IF(AND(OR(OFFSET(C27,-1,0)="s",OFFSET(C27,-1,0)=0),A27<>"s",A27>OFFSET(B27,-1,0)),OFFSET(B27,-1,0),A27))))) -> S | D27: =IF(OR(C27="S",C27=0),0,IF(ISERROR(K27),J27,SMALL(J27:K27,1))) -> 0 | E27: =IF($C27=1,OFFSET(E27,-1,0)+1,OFFSET(E27,-1,0)) -> 1 | F27: =IF($C27=1,0,IF($C27=2,OFFSET(F27,-1,0)+1,OFFSET(F27,-1,0))) -> 1 | G27: =IF(AND($C27<=2,$C27<>0),0,IF($C27=3,OFFSET(G27,-1,0)+1,OFFSET(G27,-1,0))) -> 2 | H27: =IF(AND($C27<=3,$C27<>0),0,IF($C27=4,OFFSET(H27,-1,0)+1,OFFSET(H27,-1,0))) -> 0 | I27: 0 | J27: 0 | K27: 0 | L27: =IF(OR(W27>0,$C27=1),"F","") ->  | M27: Serviço | N27: Serviço | O27: - | P27: SINAPI | Q27: 97644 | R27: REMOÇÃO DE PORTAS, DE FORMA MANUAL, SEM REAPROVEITAMENTO. AF_12/2017 | S27: M2 | T27: 10.08 | W27: 0 | X27: Referência: AGETOP - 20106
A28: S | B28: 3 | C28: S | D28: 0 | E28: 1 | F28: 1 | G28: 2 | H28: 0 | I28: 0 | J28: 0 | K28: 0 | M28: Serviço | N28: Serviço | O28: - | P28: SINAPI | Q28: 97645 | R28: REMOÇÃO DE JANELAS, DE FORMA MANUAL, SEM REAPROVEITAMENTO. AF_12/2017 | S28: M2 | T28: 8.4 | W28: 0 | X28: Referência: AGETOP - 20106
A29: S | B29: 3 | C29: S | D29: 0 | E29: 1 | F29: 1 | G29: 2 | H29: 0 | I29: 0 | J29: 0 | K29: 0 | M29: Serviço | N29: Serviço | O29: - | P29: AGETOP | Q29: 20137 | R29: DEMOLIÇAO BACIA SANITARIA C/ TRANSP. ATÉ CB. E CARGA | S29: Un | T29: 10 | W29: 0
A30: S | B30: 3 | C30: S | D30: 0 | E30: 1 | F30: 1 | G30: 2 | H30: 0 | I30: 0 | J30: 0 | K30: 0 | M30: Serviço | N30: Serviço | O30: - | P30: AGETOP | Q30: 20140 | R30: DEMOLIÇAO DE VÁLVULA DE DESCARGA C/ TRANSP. ATÉ CB. E CARGA | S30: Un | T30: 7 | W30: 0
A31: S | B31: 3 | C31: S | D31: 0 | E31: 1 | F31: 1 | G31: 2 | H31: 0 | I31: 0 | J31: 0 | K31: 0 | M31: Serviço | N31: Serviço | O31: - | P31: AGETOP | Q31: 20146 | R31: DEMOLIÇÃO DE MICTÓRIO C/ TRANSP. ATÉ CB. E CARGA | S31: Un | T31: 4 | W31: 0
A32: S | B32: 3 | C32: S | D32: 0 | E32: 1 | F32: 1 | G32: 2 | H32: 0 | I32: 0 | J32: 0 | K32: 0 | M32: Serviço | N32: Serviço | O32: - | P32: AGETOP | Q32: 20163 | R32: DEMOLIÇÃO DAS INSTALAÇÕES HIDROSANITÁRIAS E AFINS C/ TRANSP. ATÉ CB. E CARGA | S32: H | T32: 4 | W32: 0
A33: 3 | B33: 3 | C33: 3 | D33: 2 | E33: 1 | F33: 1 | G33: 3 | H33: 0 | I33: 0 | J33: 31 | K33: 2 | M33: Nível 3 | N33: Nível 3 | O33: - | P33: SINAPI | R33: REFORMA ELÉTRICA | S33: - | W33: 0
A34: S | B34: 3 | C34: S | D34: 0 | E34: 1 | F34: 1 | G34: 3 | H34: 0 | I34: 0 | J34: 0 | K34: 0 | M34: Serviço | N34: Serviço | O34: - | P34: AGETOP | Q34: 20162 | R34: DEMOLIÇÃO DAS INSTALAÇÕES ELÉTRICAS E AFINS C/ TRANSP. ATÉ CB. E CARGA | S34: H | T34: 24 | W34: 0
A35: 3 | B35: 3 | C35: 3 | D35: 15 | E35: 1 | F35: 1 | G35: 4 | H35: 0 | I35: 0 | J35: 29 | K35: 15 | M35: Nível 3 | N35: Nível 3 | O35: - | P35: SINAPI | R35: COBERTURA BLOCO 5 | S35: - | W35: 0
A36: S | B36: =IF(OR(C36="s",C36=0),OFFSET(B36,-1,0),C36) -> 3 | C36: =IF(OFFSET(C36,-1,0)="L",1,IF(OFFSET(C36,-1,0)=1,2,IF(OR(A36="s",A36=0),"S",IF(AND(OFFSET(C36,-1,0)=2,A36=4),3,IF(AND(OR(OFFSET(C36,-1,0)="s",OFFSET(C36,-1,0)=0),A36<>"s",A36>OFFSET(B36,-1,0)),OFFSET(B36,-1,0),A36))))) -> S | D36: =IF(OR(C36="S",C36=0),0,IF(ISERROR(K36),J36,SMALL(J36:K36,1))) -> 0 | E36: =IF($C36=1,OFFSET(E36,-1,0)+1,OFFSET(E36,-1,0)) -> 1 | F36: =IF($C36=1,0,IF($C36=2,OFFSET(F36,-1,0)+1,OFFSET(F36,-1,0))) -> 1 | G36: =IF(AND($C36<=2,$C36<>0),0,IF($C36=3,OFFSET(G36,-1,0)+1,OFFSET(G36,-1,0))) -> 4 | H36: =IF(AND($C36<=3,$C36<>0),0,IF($C36=4,OFFSET(H36,-1,0)+1,OFFSET(H36,-1,0))) -> 0 | I36: 0 | J36: 0 | K36: 0 | L36: =IF(OR(W36>0,$C36=1),"F","") ->  | M36: Serviço | N36: Serviço | O36: - | P36: SINAPI | Q36: 98533 | R36: PODA EM ALTURA DE ÁRVORE COM DIÂMETRO DE TRONCO MAIOR OU IGUAL A 0,20 M E MENOR QUE 0,40 M.AF_05/2018 | S36: UN | T36: 5 | W36: 0
A37: S | B37: 3 | C37: S | D37: 0 | E37: 1 | F37: 1 | G37: 4 | H37: 0 | I37: 0 | J37: 0 | K37: 0 | M37: Serviço | N37: Serviço | O37: - | P37: SINAPI | Q37: 98529 | R37: CORTE RASO E RECORTE DE ÁRVORE COM DIÂMETRO DE TRONCO MAIOR OU IGUAL A 0,20 M E MENOR QUE 0,40 M.AF_05/2018 | S37: UN | T37: 5 | W37: 0
A38: S | B38: =IF(OR(C38="s",C38=0),OFFSET(B38,-1,0),C38) -> 3 | C38: =IF(OFFSET(C38,-1,0)="L",1,IF(OFFSET(C38,-1,0)=1,2,IF(OR(A38="s",A38=0),"S",IF(AND(OFFSET(C38,-1,0)=2,A38=4),3,IF(AND(OR(OFFSET(C38,-1,0)="s",OFFSET(C38,-1,0)=0),A38<>"s",A38>OFFSET(B38,-1,0)),OFFSET(B38,-1,0),A38))))) -> S | D38: =IF(OR(C38="S",C38=0),0,IF(ISERROR(K38),J38,SMALL(J38:K38,1))) -> 0 | E38: =IF($C38=1,OFFSET(E38,-1,0)+1,OFFSET(E38,-1,0)) -> 1 | F38: =IF($C38=1,0,IF($C38=2,OFFSET(F38,-1,0)+1,OFFSET(F38,-1,0))) -> 1 | G38: =IF(AND($C38<=2,$C38<>0),0,IF($C38=3,OFFSET(G38,-1,0)+1,OFFSET(G38,-1,0))) -> 4 | H38: =IF(AND($C38<=3,$C38<>0),0,IF($C38=4,OFFSET(H38,-1,0)+1,OFFSET(H38,-1,0))) -> 0 | I38: 0 | J38: 0 | K38: 0 | L38: =IF(OR(W38>0,$C38=1),"F","") ->  | M38: Serviço | N38: Serviço | O38: - | P38: SINAPI | Q38: 98526 | R38: REMOÇÃO DE RAÍZES REMANESCENTES DE TRONCO DE ÁRVORE COM DIÂMETRO MAIOR OU IGUAL A 0,20 M E MENOR QUE 0,40 M.AF_05/2018 | S38: UN | T38: 5 | W38: 0
A39: S | B39: 3 | C39: S | D39: 0 | E39: 1 | F39: 1 | G39: 4 | H39: 0 | I39: 0 | J39: 0 | K39: 0 | M39: Serviço | N39: Serviço | O39: - | P39: SINAPI | Q39: 97622 | R39: DEMOLIÇÃO DE ALVENARIA DE BLOCO FURADO, DE FORMA MANUAL, SEM REAPROVEITAMENTO. AF_12/2017 | S39: M3 | T39: 2.772 | W39: 0 | X39: Referência: AGETOP - 20118
A40: S | B40: 3 | C40: S | D40: 0 | E40: 1 | F40: 1 | G40: 4 | H40: 0 | I40: 0 | J40: 0 | K40: 0 | M40: Serviço | N40: Serviço | O40: - | P40: AGETOP | Q40: 20109 | R40: DEM.PISO CIMENT.SOBRE LASTRO CONC.C/TR.ATE CB. E CARGA | S40: m2 | T40: 188.83 | W40: 0
A41: S | B41: 3 | C41: S | D41: 0 | E41: 1 | F41: 1 | G41: 4 | H41: 0 | I41: 0 | J41: 0 | K41: 0 | M41: Serviço | N41: Serviço | O41: - | P41: AGETOP | Q41: 20137 | R41: DEMOLIÇAO BACIA SANITARIA C/ TRANSP. ATÉ CB. E CARGA | S41: Un | T41: 2 | W41: 0
A42: S | B42: 3 | C42: S | D42: 0 | E42: 1 | F42: 1 | G42: 4 | H42: 0 | I42: 0 | J42: 0 | K42: 0 | M42: Serviço | N42: Serviço | O42: - | P42: AGETOP | Q42: 20140 | R42: DEMOLIÇAO DE VÁLVULA DE DESCARGA C/ TRANSP. ATÉ CB. E CARGA | S42: Un | T42: 2 | W42: 0
A43: S | B43: 3 | C43: S | D43: 0 | E43: 1 | F43: 1 | G43: 4 | H43: 0 | I43: 0 | J43: 0 | K43: 0 | M43: Serviço | N43: Serviço | O43: - | P43: AGETOP | Q43: 20163 | R43: DEMOLIÇÃO DAS INSTALAÇÕES HIDROSANITÁRIAS E AFINS C/ TRANSP. ATÉ CB. E CARGA | S43: H | T43: 2 | W43: 0
A44: S | B44: =IF(OR(C44="s",C44=0),OFFSET(B44,-1,0),C44) -> 3 | C44: =IF(OFFSET(C44,-1,0)="L",1,IF(OFFSET(C44,-1,0)=1,2,IF(OR(A44="s",A44=0),"S",IF(AND(OFFSET(C44,-1,0)=2,A44=4),3,IF(AND(OR(OFFSET(C44,-1,0)="s",OFFSET(C44,-1,0)=0),A44<>"s",A44>OFFSET(B44,-1,0)),OFFSET(B44,-1,0),A44))))) -> S | D44: =IF(OR(C44="S",C44=0),0,IF(ISERROR(K44),J44,SMALL(J44:K44,1))) -> 0 | E44: =IF($C44=1,OFFSET(E44,-1,0)+1,OFFSET(E44,-1,0)) -> 1 | F44: =IF($C44=1,0,IF($C44=2,OFFSET(F44,-1,0)+1,OFFSET(F44,-1,0))) -> 1 | G44: =IF(AND($C44<=2,$C44<>0),0,IF($C44=3,OFFSET(G44,-1,0)+1,OFFSET(G44,-1,0))) -> 4 | H44: =IF(AND($C44<=3,$C44<>0),0,IF($C44=4,OFFSET(H44,-1,0)+1,OFFSET(H44,-1,0))) -> 0 | I44: 0 | J44: 0 | K44: 0 | L44: =IF(OR(W44>0,$C44=1),"F","") ->  | M44: Serviço | N44: Serviço | O44: - | P44: AGETOP | Q44: 20121 | R44: DEM. MANUAL EM CONCR.SIMPLES C/TR.ATE CB.E CARGA (O.C.) | S44: m3 | T44: 2.319 | W44: 0
A45: S | B45: 3 | C45: S | D45: 0 | E45: 1 | F45: 1 | G45: 4 | H45: 0 | I45: 0 | J45: 0 | K45: 0 | M45: Serviço | N45: Serviço | O45: - | P45: AGETOP | Q45: 20101 | R45: DEMOLICAO COBERTURA TELHA CERAMICA C/ TRANSP. ATÉ CB. E CARGA | S45: m2 | T45: 1242.51 | W45: 0
A46: S | B46: 3 | C46: S | D46: 0 | E46: 1 | F46: 1 | G46: 4 | H46: 0 | I46: 0 | J46: 0 | K46: 0 | M46: Serviço | N46: Serviço | O46: - | P46: AGETOP | Q46: 20103 | R46: DEMOLIÇÃO ESTRUTURA EM MADEIRA TELHADO C/ TRANSP. ATÉ CB. E CARGA | S46: m2 | T46: 1242.51 | W46: 0
A47: S | B47: 3 | C47: S | D47: 0 | E47: 1 | F47: 1 | G47: 4 | H47: 0 | I47: 0 | J47: 0 | K47: 0 | M47: Serviço | N47: Serviço | O47: - | P47: AGETOP | Q47: 20157 | R47: DEMOLIÇÃO CALHAS/ RUFOS EM CHAPA C/TR.AT.C.B.E CARGA | S47: m2 | T47: 4.542 | W47: 0
A48: S | B48: =IF(OR(C48="s",C48=0),OFFSET(B48,-1,0),C48) -> 3 | C48: =IF(OFFSET(C48,-1,0)="L",1,IF(OFFSET(C48,-1,0)=1,2,IF(OR(A48="s",A48=0),"S",IF(AND(OFFSET(C48,-1,0)=2,A48=4),3,IF(AND(OR(OFFSET(C48,-1,0)="s",OFFSET(C48,-1,0)=0),A48<>"s",A48>OFFSET(B48,-1,0)),OFFSET(B48,-1,0),A48))))) -> S | D48: =IF(OR(C48="S",C48=0),0,IF(ISERROR(K48),J48,SMALL(J48:K48,1))) -> 0 | E48: =IF($C48=1,OFFSET(E48,-1,0)+1,OFFSET(E48,-1,0)) -> 1 | F48: =IF($C48=1,0,IF($C48=2,OFFSET(F48,-1,0)+1,OFFSET(F48,-1,0))) -> 1 | G48: =IF(AND($C48<=2,$C48<>0),0,IF($C48=3,OFFSET(G48,-1,0)+1,OFFSET(G48,-1,0))) -> 4 | H48: =IF(AND($C48<=3,$C48<>0),0,IF($C48=4,OFFSET(H48,-1,0)+1,OFFSET(H48,-1,0))) -> 0 | I48: 0 | J48: 0 | K48: 0 | L48: =IF(OR(W48>0,$C48=1),"F","") ->  | M48: Serviço | N48: Serviço | O48: - | P48: SINAPI | Q48: 97644 | R48: REMOÇÃO DE PORTAS, DE FORMA MANUAL, SEM REAPROVEITAMENTO. AF_12/2017 | S48: M2 | T48: 18.48 | W48: 0 | X48: Referência: AGETOP - 20106
A49: S | B49: 3 | C49: S | D49: 0 | E49: 1 | F49: 1 | G49: 4 | H49: 0 | I49: 0 | J49: 0 | K49: 0 | M49: Serviço | N49: Serviço | O49: - | P49: SINAPI | Q49: 97645 | R49: REMOÇÃO DE JANELAS, DE FORMA MANUAL, SEM REAPROVEITAMENTO. AF_12/2017 | S49: M2 | T49: 4.2 | W49: 0 | X49: Referência: AGETOP - 20106
A50: 3 | B50: 3 | C50: 3 | D50: 2 | E50: 1 | F50: 1 | G50: 5 | H50: 0 | I50: 0 | J50: 14 | K50: 2 | M50: Nível 3 | N50: Nível 3 | O50: - | P50: SINAPI | R50: FORRO | S50: - | W50: 0
A51: S | B51: 3 | C51: S | D51: 0 | E51: 1 | F51: 1 | G51: 5 | H51: 0 | I51: 0 | J51: 0 | K51: 0 | M51: Serviço | N51: Serviço | O51: - | P51: AGETOP | Q51: 20147 | R51: DEMOLIÇÃO DE FORRO PVC INCLUSIVE ESTRUTURA DE SUSTENTAÇÃO C/ TRANSP. ATÉ CB. E CARGA | S51: m2 | T51: 732.77 | W51: 0
A52: 3 | B52: 3 | C52: 3 | D52: 8 | E52: 1 | F52: 1 | G52: 6 | H52: 0 | I52: 0 | J52: 12 | K52: 8 | M52: Nível 3 | N52: Nível 3 | O52: - | P52: SINAPI | R52: READEQUAÇÕES DA COZINHA | S52: - | W52: 0
A53: S | B53: 3 | C53: S | D53: 0 | E53: 1 | F53: 1 | G53: 6 | H53: 0 | I53: 0 | J53: 0 | K53: 0 | M53: Serviço | N53: Serviço | O53: - | P53: SINAPI | Q53: 97622 | R53: DEMOLIÇÃO DE ALVENARIA DE BLOCO FURADO, DE FORMA MANUAL, SEM REAPROVEITAMENTO. AF_12/2017 | S53: M3 | T53: 18.726 | W53: 0 | X53: Referência: AGETOP - 20118
A54: S | B54: 3 | C54: S | D54: 0 | E54: 1 | F54: 1 | G54: 6 | H54: 0 | I54: 0 | J54: 0 | K54: 0 | M54: Serviço | N54: Serviço | O54: - | P54: AGETOP | Q54: 20139 | R54: DEMOLIÇAO DE BANCADAS C/ TRANSP. ATÉ CB. E CARGA | S54: m2 | T54: 7.64 | W54: 0
A55: S | B55: 3 | C55: S | D55: 0 | E55: 1 | F55: 1 | G55: 6 | H55: 0 | I55: 0 | J55: 0 | K55: 0 | M55: Serviço | N55: Serviço | O55: - | P55: AGETOP | Q55: 20163 | R55: DEMOLIÇÃO DAS INSTALAÇÕES HIDROSANITÁRIAS E AFINS C/ TRANSP. ATÉ CB. E CARGA | S55: H | T55: 4 | W55: 0
A56: S | B56: 3 | C56: S | D56: 0 | E56: 1 | F56: 1 | G56: 6 | H56: 0 | I56: 0 | J56: 0 | K56: 0 | M56: Serviço | N56: Serviço | O56: - | P56: SINAPI | Q56: 97644 | R56: REMOÇÃO DE PORTAS, DE FORMA MANUAL, SEM REAPROVEITAMENTO. AF_12/2017 | S56: M2 | T56: 8.4 | W56: 0 | X56: Referência: AGETOP - 20106
A57: S | B57: 3 | C57: S | D57: 0 | E57: 1 | F57: 1 | G57: 6 | H57: 0 | I57: 0 | J57: 0 | K57: 0 | M57: Serviço | N57: Serviço | O57: - | P57: SINAPI | Q57: 97645 | R57: REMOÇÃO DE JANELAS, DE FORMA MANUAL, SEM REAPROVEITAMENTO. AF_12/2017 | S57: M2 | T57: 7.8 | W57: 0 | X57: Referência: AGETOP - 20106
A58: S | B58: 3 | C58: S | D58: 0 | E58: 1 | F58: 1 | G58: 6 | H58: 0 | I58: 0 | J58: 0 | K58: 0 | M58: Serviço | N58: Serviço | O58: - | P58: AGETOP | Q58: 20109 | R58: DEM.PISO CIMENT.SOBRE LASTRO CONC.C/TR.ATE CB. E CARGA | S58: m2 | T58: 80.2 | W58: 0
A59: S | B59: 3 | C59: S | D59: 0 | E59: 1 | F59: 1 | G59: 6 | H59: 0 | I59: 0 | J59: 0 | K59: 0 | M59: Serviço | N59: Serviço | O59: - | P59: SINAPI | Q59: 97633 | R59: DEMOLIÇÃO DE REVESTIMENTO CERÂMICO, DE FORMA MANUAL, SEM REAPROVEITAMENTO. AF_12/2017 | S59: M2 | T59: 94.1 | W59: 0 | X59: Referência: AGETOP - 20115
A60: 3 | B60: 3 | C60: 3 | D60: 2 | E60: 1 | F60: 1 | G60: 7 | H60: 0 | I60: 0 | J60: 4 | K60: 2 | M60: Nível 3 | N60: Nível 3 | O60: - | P60: SINAPI | R60: PISO PATIO COBERTO | S60: - | W60: 0
A61: S | B61: 3 | C61: S | D61: 0 | E61: 1 | F61: 1 | G61: 7 | H61: 0 | I61: 0 | J61: 0 | K61: 0 | M61: Serviço | N61: Serviço | O61: - | P61: AGETOP | Q61: 20121 | R61: DEM. MANUAL EM CONCR.SIMPLES C/TR.ATE CB.E CARGA (O.C.) | S61: m3 | T61: 14.852 | W61: 0
A62: 3 | B62: =IF(OR(C62="s",C62=0),OFFSET(B62,-1,0),C62) -> 3 | C62: =IF(OFFSET(C62,-1,0)="L",1,IF(OFFSET(C62,-1,0)=1,2,IF(OR(A62="s",A62=0),"S",IF(AND(OFFSET(C62,-1,0)=2,A62=4),3,IF(AND(OR(OFFSET(C62,-1,0)="s",OFFSET(C62,-1,0)=0),A62<>"s",A62>OFFSET(B62,-1,0)),OFFSET(B62,-1,0),A62))))) -> 3 | D62: =IF(OR(C62="S",C62=0),0,IF(ISERROR(K62),J62,SMALL(J62:K62,1))) -> 2 | E62: 1 | F62: 1 | G62: 8 | H62: 0 | I62: 0 | J62: 2 | M62: Nível 3 | N62: Nível 3 | O62: - | P62: SINAPI | R62: REFORMA GERAL | S62: - | W62: 0
A63: S | B63: 3 | C63: S | D63: 0 | E63: 1 | F63: 1 | G63: 8 | H63: 0 | I63: 0 | J63: 0 | K63: 0 | M63: Serviço | N63: Serviço | O63: - | P63: SINAPI | Q63: 74209/1 | R63: PLACA DE OBRA EM CHAPA DE ACO GALVANIZADO | S63: M2 | T63: 7.5 | W63: 0 | X63: Referência: AGETOP - 21301
A64: 2 | B64: 2 | C64: 2 | D64: 3 | E64: 1 | F64: 2 | G64: 0 | H64: 0 | I64: 0 | J64: 367 | K64: 3 | M64: Nível 2 | N64: Nível 2 | O64: - | P64: AGETOP | R64: TRANSPORTES | S64: - | W64: 0
A65: S | B65: 2 | C65: S | D65: 0 | E65: 1 | F65: 2 | G65: 0 | H65: 0 | I65: 0 | J65: 0 | K65: 0 | M65: Serviço | N65: Serviço | O65: - | P65: SINAPI | Q65: 72900 | R65: TRANSPORTE DE ENTULHO COM CAMINHAO BASCULANTE 6 M3, RODOVIA PAVIMENTADA, DMT 0,5 A 1,0 KM | S65: M3 | T65: 235.4024 | W65: 0
A66: S | B66: =IF(OR(C66="s",C66=0),OFFSET(B66,-1,0),C66) -> 2 | C66: =IF(OFFSET(C66,-1,0)="L",1,IF(OFFSET(C66,-1,0)=1,2,IF(OR(A66="s",A66=0),"S",IF(AND(OFFSET(C66,-1,0)=2,A66=4),3,IF(AND(OR(OFFSET(C66,-1,0)="s",OFFSET(C66,-1,0)=0),A66<>"s",A66>OFFSET(B66,-1,0)),OFFSET(B66,-1,0),A66))))) -> S | D66: =IF(OR(C66="S",C66=0),0,IF(ISERROR(K66),J66,SMALL(J66:K66,1))) -> 0 | E66: =IF($C66=1,OFFSET(E66,-1,0)+1,OFFSET(E66,-1,0)) -> 1 | F66: =IF($C66=1,0,IF($C66=2,OFFSET(F66,-1,0)+1,OFFSET(F66,-1,0))) -> 2 | G66: =IF(AND($C66<=2,$C66<>0),0,IF($C66=3,OFFSET(G66,-1,0)+1,OFFSET(G66,-1,0))) -> 0 | H66: =IF(AND($C66<=3,$C66<>0),0,IF($C66=4,OFFSET(H66,-1,0)+1,OFFSET(H66,-1,0))) -> 0 | I66: 0 | J66: 0 | K66: 0 | L66: =IF(OR(W66>0,$C66=1),"F","") ->  | M66: Serviço | N66: Serviço | O66: - | P66: SINAPI | Q66: 72898 | R66: CARGA E DESCARGA MECANIZADAS DE ENTULHO EM CAMINHAO BASCULANTE 6 M3 | S66: M3 | T66: 235.4024 | W66: 0 | X66: Referência: AGETOP - 41005
A67: 2 | B67: 2 | C67: 2 | D67: 11 | E67: 1 | F67: 3 | G67: 0 | H67: 0 | I67: 0 | J67: 364 | K67: 11 | M67: Nível 2 | N67: Nível 2 | O67: - | P67: AGETOP | R67: SERVIÇO EM TERRA | S67: - | W67: 0
A68: 3 | B68: 3 | C68: 3 | D68: 2 | E68: 1 | F68: 3 | G68: 1 | H68: 0 | I68: 0 | J68: 10 | K68: 2 | M68: Nível 3 | N68: Nível 3 | O68: - | P68: SINAPI | R68: ACESSIBILIDADE CALÇADA | S68: - | W68: 0
A69: S | B69: 3 | C69: S | D69: 0 | E69: 1 | F69: 3 | G69: 1 | H69: 0 | I69: 0 | J69: 0 | K69: 0 | M69: Serviço | N69: Serviço | O69: - | P69: AGETOP | Q69: 41002 | R69: APILOAMENTO | S69: m2 | T69: 1900.85 | W69: 0
A70: 3 | B70: 3 | C70: 3 | D70: 3 | E70: 1 | F70: 3 | G70: 2 | H70: 0 | I70: 0 | J70: 8 | K70: 3 | M70: Nível 3 | N70: Nível 3 | O70: - | P70: SINAPI | R70: BANHEIROS / VESTIÁRIOS | S70: - | W70: 0
A71: S | B71: 3 | C71: S | D71: 0 | E71: 1 | F71: 3 | G71: 2 | H71: 0 | I71: 0 | J71: 0 | K71: 0 | M71: Serviço | N71: Serviço | O71: - | P71: SINAPI | Q71: 93358 | R71: ESCAVAÇÃO MANUAL DE VALA COM PROFUNDIDADE MENOR OU IGUAL A 1,30 M. AF_03/2016 | S71: M3 | T71: 20.7 | W71: 0 | X71: Referência: AGETOP - 40101
A72: S | B72: 3 | C72: S | D72: 0 | E72: 1 | F72: 3 | G72: 2 | H72: 0 | I72: 0 | J72: 0 | K72: 0 | M72: Serviço | N72: Serviço | O72: - | P72: SINAPI | Q72: 96995 | R72: REATERRO MANUAL APILOADO COM SOQUETE. AF_10/2017 | S72: M3 | T72: 20.7 | W72: 0 | X72: Referência: AGETOP - 40902
A73: 3 | B73: 3 | C73: 3 | D73: 2 | E73: 1 | F73: 3 | G73: 3 | H73: 0 | I73: 0 | J73: 5 | K73: 2 | M73: Nível 3 | N73: Nível 3 | O73: - | P73: SINAPI | R73: COBERTURA BLOCO 5 | S73: - | W73: 0
A74: S | B74: 3 | C74: S | D74: 0 | E74: 1 | F74: 3 | G74: 3 | H74: 0 | I74: 0 | J74: 0 | K74: 0 | M74: Serviço | N74: Serviço | O74: - | P74: AGETOP | Q74: 20190 | R74: LIMPEZA MECANICA DE TERRENO | S74: m2 | T74: 188.83 | W74: 0
A75: 3 | B75: 3 | C75: 3 | D75: 3 | E75: 1 | F75: 3 | G75: 4 | H75: 0 | I75: 0 | J75: 3 | M75: Nível 3 | N75: Nível 3 | O75: - | P75: SINAPI | R75: COBERTURA BLOCO 5 | S75: - | W75: 0
A76: S | B76: 3 | C76: S | D76: 0 | E76: 1 | F76: 3 | G76: 4 | H76: 0 | I76: 0 | J76: 0 | K76: 0 | M76: Serviço | N76: Serviço | O76: - | P76: AGETOP | Q76: 41002 | R76: APILOAMENTO | S76: m2 | T76: 188.83 | W76: 0
A77: S | B77: 3 | C77: S | D77: 0 | E77: 1 | F77: 3 | G77: 4 | H77: 0 | I77: 0 | J77: 0 | K77: 0 | M77: Serviço | N77: Serviço | O77: - | P77: AGETOP | Q77: 41003 | R77: ATERRO INTERNO SEM APILOAM.C/TR.EM CARRINHO MÃO | S77: m3 | T77: 188.83 | W77: 0
A78: =CHOOSE(1+LOG(1+2*(ORÇAMENTO.Nivel="Nível 1")+4*(ORÇAMENTO.Nivel="Nível 2")+8*(ORÇAMENTO.Nivel="Nível 3")+16*(ORÇAMENTO.Nivel="Nível 4")+32*(ORÇAMENTO.Nivel="Serviço"),2),0,1,2,3,4,"S") -> 2 | B78: =IF(OR(C78="s",C78=0),OFFSET(B78,-1,0),C78) -> 2 | C78: =IF(OFFSET(C78,-1,0)="L",1,IF(OFFSET(C78,-1,0)=1,2,IF(OR(A78="s",A78=0),"S",IF(AND(OFFSET(C78,-1,0)=2,A78=4),3,IF(AND(OR(OFFSET(C78,-1,0)="s",OFFSET(C78,-1,0)=0),A78<>"s",A78>OFFSET(B78,-1,0)),OFFSET(B78,-1,0),A78))))) -> 2 | D78: =IF(OR(C78="S",C78=0),0,IF(ISERROR(K78),J78,SMALL(J78:K78,1))) -> 13 | E78: =IF($C78=1,OFFSET(E78,-1,0)+1,OFFSET(E78,-1,0)) -> 1 | F78: =IF($C78=1,0,IF($C78=2,OFFSET(F78,-1,0)+1,OFFSET(F78,-1,0))) -> 4 | G78: =IF(AND($C78<=2,$C78<>0),0,IF($C78=3,OFFSET(G78,-1,0)+1,OFFSET(G78,-1,0))) -> 0 | H78: =IF(AND($C78<=3,$C78<>0),0,IF($C78=4,OFFSET(H78,-1,0)+1,OFFSET(H78,-1,0))) -> 0 | I78: =IF(AND($C78<=4,$C78<>0),0,IF(AND($C78="S",$W78>0),OFFSET(I78,-1,0)+1,OFFSET(I78,-1,0))) -> 0 | J78: 353 | K78: 13 | L78: =IF(OR(W78>0,$C78=1),"F","") ->  | M78: Nível 2 | N78: Nível 2 | O78: - | P78: AGETOP | R78: FUNDAÇÕES E SONDAGENS | S78: - | W78: 0
A79: 3 | B79: 3 | C79: 3 | D79: 4 | E79: 1 | F79: 4 | G79: 1 | H79: 0 | I79: 0 | J79: 12 | K79: 4 | M79: Nível 3 | N79: Nível 3 | O79: - | P79: AGETOP | R79: ESTACAS | S79: - | W79: 0
A80: S | B80: 3 | C80: S | D80: 0 | E80: 1 | F80: 4 | G80: 1 | H80: 0 | I80: 0 | J80: 0 | K80: 0 | M80: Serviço | N80: Serviço | O80: - | P80: AGETOP | Q80: 52004 | R80: ACO CA 50-A - 8,0 MM (5/16") - (OBRAS CIVIS) | S80: Kg | T80: 315 | W80: 0
A81: =CHOOSE(1+LOG(1+2*(ORÇAMENTO.Nivel="Nível 1")+4*(ORÇAMENTO.Nivel="Nível 2")+8*(ORÇAMENTO.Nivel="Nível 3")+16*(ORÇAMENTO.Nivel="Nível 4")+32*(ORÇAMENTO.Nivel="Serviço"),2),0,1,2,3,4,"S") -> S | B81: 3 | C81: S | D81: 0 | E81: 1 | F81: 4 | G81: 1 | H81: 0 | I81: =IF(AND($C81<=4,$C81<>0),0,IF(AND($C81="S",$W81>0),OFFSET(I81,-1,0)+1,OFFSET(I81,-1,0))) -> 0 | J81: 0 | K81: 0 | M81: Serviço | N81: Serviço | O81: - | P81: AGETOP | Q81: 52014 | R81: ACO CA-60 - 5,0 MM - (OBRAS CIVIS) | S81: Kg | T81: 180.1818182 | W81: 0
A82: S | B82: 3 | C82: S | D82: 0 | E82: 1 | F82: 4 | G82: 1 | H82: 0 | I82: 0 | J82: 0 | K82: 0 | M82: Serviço | N82: Serviço | O82: - | P82: AGETOP | Q82: 50302 | R82: ESTACA A TRADO DIAM.30 CM SEM FERRO | S82: M | T82: 163 | W82: 0
A83: 3 | B83: 3 | C83: 3 | D83: 8 | E83: 1 | F83: 4 | G83: 2 | H83: 0 | I83: 0 | J83: =IF(OR($C83="S",$C83=0),0,MATCH(0,OFFSET($D83,1,$C83,ROW($C$431)-ROW($C83)),0)) -> 8 | K83: =IF(OR($C83="S",$C83=0),0,MATCH(OFFSET($D83,0,$C83)+1,OFFSET($D83,1,$C83,ROW($C$431)-ROW($C83)),0)) -> 195 | M83: Nível 3 | N83: Nível 3 | O83: - | P83: SINAPI | R83: BLOCOS | S83: - | W83: 0
A84: S | B84: 3 | C84: S | D84: 0 | E84: 1 | F84: 4 | G84: 2 | H84: 0 | I84: 0 | J84: 0 | K84: 0 | M84: Serviço | N84: Serviço | O84: - | P84: AGETOP | Q84: 52004 | R84: ACO CA 50-A - 8,0 MM (5/16") - (OBRAS CIVIS) | S84: Kg | T84: 7.272727273 | W84: 0
A85: S | B85: 3 | C85: S | D85: 0 | E85: 1 | F85: 4 | G85: 2 | H85: 0 | I85: 0 | J85: 0 | K85: 0 | M85: Serviço | N85: Serviço | O85: - | P85: AGETOP | Q85: 52005 | R85: ACO CA-50A - 10,0 MM (3/8") - (OBRAS CIVIS) | S85: Kg | T85: 269.4545455 | W85: 0
A86: S | B86: 3 | C86: S | D86: 0 | E86: 1 | F86: 4 | G86: 2 | H86: 0 | I86: 0 | J86: 0 | K86: 0 | M86: Serviço | N86: Serviço | O86: - | P86: AGETOP | Q86: 52006 | R86: ACO CA 50-A - 12,5 MM (1/2") - (OBRAS CIVIS) | S86: Kg | T86: 4.363636364 | W86: 0
A87: S | B87: 3 | C87: S | D87: 0 | E87: 1 | F87: 4 | G87: 2 | H87: 0 | I87: 0 | J87: 0 | K87: 0 | M87: Serviço | N87: Serviço | O87: - | P87: AGETOP | Q87: 52014 | R87: ACO CA-60 - 5,0 MM - (OBRAS CIVIS) | S87: Kg | T87: 389.3636364 | W87: 0
A88: S | B88: 3 | C88: S | D88: 0 | E88: 1 | F88: 4 | G88: 2 | H88: 0 | I88: 0 | J88: 0 | K88: 0 | M88: Serviço | N88: Serviço | O88: - | P88: AGETOP | Q88: 51009 | R88: FORMA TABUA PINHO P/FUNDACOES U=3V - (OBRAS CIVIS) | S88: m2 | T88: 175.56 | W88: 0
A89: S | B89: 3 | C89: S | D89: 0 | E89: 1 | F89: 4 | G89: 2 | H89: 0 | I89: 0 | J89: 0 | K89: 0 | M89: Serviço | N89: Serviço | O89: - | P89: AGETOP | Q89: 51030 | R89: PREPARO COM BETONEIRA E TRANSPORTE MANUAL DE CONCRETO FCK=25 MPA | S89: m3 | T89: 25.61 | W89: 0
A90: S | B90: =IF(OR(C90="s",C90=0),OFFSET(B90,-1,0),C90) -> 3 | C90: =IF(OFFSET(C90,-1,0)="L",1,IF(OFFSET(C90,-1,0)=1,2,IF(OR(A90="s",A90=0),"S",IF(AND(OFFSET(C90,-1,0)=2,A90=4),3,IF(AND(OR(OFFSET(C90,-1,0)="s",OFFSET(C90,-1,0)=0),A90<>"s",A90>OFFSET(B90,-1,0)),OFFSET(B90,-1,0),A90))))) -> S | D90: =IF(OR(C90="S",C90=0),0,IF(ISERROR(K90),J90,SMALL(J90:K90,1))) -> 0 | E90: =IF($C90=1,OFFSET(E90,-1,0)+1,OFFSET(E90,-1,0)) -> 1 | F90: =IF($C90=1,0,IF($C90=2,OFFSET(F90,-1,0)+1,OFFSET(F90,-1,0))) -> 4 | G90: =IF(AND($C90<=2,$C90<>0),0,IF($C90=3,OFFSET(G90,-1,0)+1,OFFSET(G90,-1,0))) -> 2 | H90: =IF(AND($C90<=3,$C90<>0),0,IF($C90=4,OFFSET(H90,-1,0)+1,OFFSET(H90,-1,0))) -> 0 | I90: 0 | J90: 0 | K90: 0 | L90: =IF(OR(W90>0,$C90=1),"F","") ->  | M90: Serviço | N90: Serviço | O90: - | P90: AGETOP | Q90: 60801 | R90: LANÇAMENTO/APLICAÇÃO/ADENSAMENTO MANUAL DE CONCRETO - (OBRAS CIVIS) | S90: m3 | T90: 25.61 | W90: 0
A91: 2 | B91: 2 | C91: 2 | D91: 17 | E91: 1 | F91: 5 | G91: 0 | H91: 0 | I91: 0 | J91: 340 | K91: 17 | M91: Nível 2 | N91: Nível 2 | O91: - | P91: AGETOP | R91: ESTRUTURA | S91: - | W91: 0
A92: 3 | B92: 3 | C92: 3 | D92: 7 | E92: 1 | F92: 5 | G92: 1 | H92: 0 | I92: 0 | J92: 16 | K92: 7 | M92: Nível 3 | N92: Nível 3 | O92: - | P92: AGETOP | R92: PILARES | S92: - | W92: 0
A93: S | B93: 3 | C93: S | D93: 0 | E93: 1 | F93: 5 | G93: 1 | H93: 0 | I93: 0 | J93: 0 | K93: 0 | M93: Serviço | N93: Serviço | O93: - | P93: AGETOP | Q93: 60305 | R93: ACO CA-50A - 10,0 MM (3/8") - (OBRAS CIVIS) | S93: Kg | T93: 842.7272727 | W93: 0
A94: S | B94: 3 | C94: S | D94: 0 | E94: 1 | F94: 5 | G94: 1 | H94: 0 | I94: 0 | J94: 0 | K94: 0 | M94: Serviço | N94: Serviço | O94: - | P94: AGETOP | Q94: 60306 | R94: ACO CA-50A - 12,5 MM (1/2") - (OBRAS CIVIS) | S94: Kg | T94: 14.45454545 | W94: 0
A95: S | B95: 3 | C95: S | D95: 0 | E95: 1 | F95: 5 | G95: 1 | H95: 0 | I95: 0 | J95: 0 | K95: 0 | M95: Serviço | N95: Serviço | O95: - | P95: AGETOP | Q95: 60314 | R95: ACO CA - 60 - 5,0 MM - (OBRAS CIVIS) | S95: Kg | T95: 332.7272727 | W95: 0
A96: S | B96: 3 | C96: S | D96: 0 | E96: 1 | F96: 5 | G96: 1 | H96: 0 | I96: 0 | J96: 0 | K96: 0 | M96: Serviço | N96: Serviço | O96: - | P96: AGETOP | Q96: 51030 | R96: PREPARO COM BETONEIRA E TRANSPORTE MANUAL DE CONCRETO FCK=25 MPA | S96: m3 | T96: 12.93 | W96: 0
A97: S | B97: 3 | C97: S | D97: 0 | E97: 1 | F97: 5 | G97: 1 | H97: 0 | I97: 0 | J97: 0 | K97: 0 | M97: Serviço | N97: Serviço | O97: - | P97: AGETOP | Q97: 60801 | R97: LANÇAMENTO/APLICAÇÃO/ADENSAMENTO MANUAL DE CONCRETO - (OBRAS CIVIS) | S97: m3 | T97: 12.93 | W97: 0
A98: S | B98: 3 | C98: S | D98: 0 | E98: 1 | F98: 5 | G98: 1 | H98: 0 | I98: 0 | J98: 0 | K98: 0 | M98: Serviço | N98: Serviço | O98: - | P98: AGETOP | Q98: 60209 | R98: FORMA CH.COMPENSADA 12MM-VIGA/PILAR U=4V - (OBRAS CIVIS | S98: m2 | T98: 275.85 | W98: 0
A99: 3 | B99: 3 | C99: 3 | D99: 9 | E99: 1 | F99: 5 | G99: 2 | H99: 0 | I99: 0 | J99: 9 | K99: 179 | M99: Nível 3 | N99: Nível 3 | O99: - | R99: VIGAS DE COBERTURA | S99: - | W99: 0
A100: S | B100: 3 | C100: S | D100: 0 | E100: 1 | F100: 5 | G100: 2 | H100: 0 | I100: 0 | J100: 0 | K100: 0 | M100: Serviço | N100: Serviço | O100: - | P100: AGETOP | Q100: 60303 | R100: ACO CA-50-A - 6,3 MM (1/4") - (OBRAS CIVIS) | S100: Kg | T100: 1.363636364 | W100: 0
A101: S | B101: 3 | C101: S | D101: 0 | E101: 1 | F101: 5 | G101: 2 | H101: 0 | I101: 0 | J101: 0 | K101: 0 | M101: Serviço | N101: Serviço | O101: - | P101: AGETOP | Q101: 60304 | R101: ACO CA-50 A - 8,0 MM (5/16") - (OBRAS CIVIS) | S101: Kg | T101: 335.9090909 | W101: 0
A102: S | B102: 3 | C102: S | D102: 0 | E102: 1 | F102: 5 | G102: 2 | H102: 0 | I102: 0 | J102: 0 | K102: 0 | M102: Serviço | N102: Serviço | O102: - | P102: AGETOP | Q102: 60305 | R102: ACO CA-50A - 10,0 MM (3/8") - (OBRAS CIVIS) | S102: Kg | T102: 666.3636364 | W102: 0
A103: S | B103: 3 | C103: S | D103: 0 | E103: 1 | F103: 5 | G103: 2 | H103: 0 | I103: 0 | J103: 0 | K103: 0 | M103: Serviço | N103: Serviço | O103: - | P103: AGETOP | Q103: 60306 | R103: ACO CA-50A - 12,5 MM (1/2") - (OBRAS CIVIS) | S103: Kg | T103: 39.45454545 | W103: 0
A104: S | B104: 3 | C104: S | D104: 0 | E104: 1 | F104: 5 | G104: 2 | H104: 0 | I104: 0 | J104: 0 | K104: 0 | M104: Serviço | N104: Serviço | O104: - | P104: AGETOP | Q104: 60314 | R104: ACO CA - 60 - 5,0 MM - (OBRAS CIVIS) | S104: Kg | T104: 534.4545455 | W104: 0
A105: S | B105: 3 | C105: S | D105: 0 | E105: 1 | F105: 5 | G105: 2 | H105: 0 | I105: 0 | J105: 0 | K105: 0 | M105: Serviço | N105: Serviço | O105: - | P105: AGETOP | Q105: 60517 | R105: PREPARO COM BETONEIRA E TRANSPORTE MANUAL DE CONCRETO FCK=25 MPA | S105: m3 | T105: 44.03 | W105: 0
A106: S | B106: 3 | C106: S | D106: 0 | E106: 1 | F106: 5 | G106: 2 | H106: 0 | I106: 0 | J106: 0 | K106: 0 | M106: Serviço | N106: Serviço | O106: - | P106: AGETOP | Q106: 60801 | R106: LANÇAMENTO/APLICAÇÃO/ADENSAMENTO MANUAL DE CONCRETO - (OBRAS CIVIS) | S106: m3 | T106: 44.03 | W106: 0
A107: S | B107: =IF(OR(C107="s",C107=0),OFFSET(B107,-1,0),C107) -> 3 | C107: =IF(OFFSET(C107,-1,0)="L",1,IF(OFFSET(C107,-1,0)=1,2,IF(OR(A107="s",A107=0),"S",IF(AND(OFFSET(C107,-1,0)=2,A107=4),3,IF(AND(OR(OFFSET(C107,-1,0)="s",OFFSET(C107,-1,0)=0),A107<>"s",A107>OFFSET(B107,-1,0)),OFFSET(B107,-1,0),A107))))) -> S | D107: =IF(OR(C107="S",C107=0),0,IF(ISERROR(K107),J107,SMALL(J107:K107,1))) -> 0 | E107: =IF($C107=1,OFFSET(E107,-1,0)+1,OFFSET(E107,-1,0)) -> 1 | F107: =IF($C107=1,0,IF($C107=2,OFFSET(F107,-1,0)+1,OFFSET(F107,-1,0))) -> 5 | G107: =IF(AND($C107<=2,$C107<>0),0,IF($C107=3,OFFSET(G107,-1,0)+1,OFFSET(G107,-1,0))) -> 2 | H107: =IF(AND($C107<=3,$C107<>0),0,IF($C107=4,OFFSET(H107,-1,0)+1,OFFSET(H107,-1,0))) -> 0 | I107: 0 | J107: 0 | K107: 0 | L107: =IF(OR(W107>0,$C107=1),"F","") ->  | M107: Serviço | N107: Serviço | O107: - | P107: AGETOP | Q107: 60209 | R107: FORMA CH.COMPENSADA 12MM-VIGA/PILAR U=4V - (OBRAS CIVIS | S107: m2 | T107: 517.18 | W107: 0
A108: =CHOOSE(1+LOG(1+2*(ORÇAMENTO.Nivel="Nível 1")+4*(ORÇAMENTO.Nivel="Nível 2")+8*(ORÇAMENTO.Nivel="Nível 3")+16*(ORÇAMENTO.Nivel="Nível 4")+32*(ORÇAMENTO.Nivel="Serviço"),2),0,1,2,3,4,"S") -> 2 | B108: =IF(OR(C108="s",C108=0),OFFSET(B108,-1,0),C108) -> 2 | C108: =IF(OFFSET(C108,-1,0)="L",1,IF(OFFSET(C108,-1,0)=1,2,IF(OR(A108="s",A108=0),"S",IF(AND(OFFSET(C108,-1,0)=2,A108=4),3,IF(AND(OR(OFFSET(C108,-1,0)="s",OFFSET(C108,-1,0)=0),A108<>"s",A108>OFFSET(B108,-1,0)),OFFSET(B108,-1,0),A108))))) -> 2 | D108: =IF(OR(C108="S",C108=0),0,IF(ISERROR(K108),J108,SMALL(J108:K108,1))) -> 118 | E108: =IF($C108=1,OFFSET(E108,-1,0)+1,OFFSET(E108,-1,0)) -> 1 | F108: =IF($C108=1,0,IF($C108=2,OFFSET(F108,-1,0)+1,OFFSET(F108,-1,0))) -> 6 | G108: =IF(AND($C108<=2,$C108<>0),0,IF($C108=3,OFFSET(G108,-1,0)+1,OFFSET(G108,-1,0))) -> 0 | H108: =IF(AND($C108<=3,$C108<>0),0,IF($C108=4,OFFSET(H108,-1,0)+1,OFFSET(H108,-1,0))) -> 0 | I108: =IF(AND($C108<=4,$C108<>0),0,IF(AND($C108="S",$W108>0),OFFSET(I108,-1,0)+1,OFFSET(I108,-1,0))) -> 0 | J108: 323 | K108: 118 | L108: =IF(OR(W108>0,$C108=1),"F","") ->  | M108: Nível 2 | N108: Nível 2 | O108: - | R108: INSTALAÇÕES ELÉTRICAS | S108: - | W108: 0
A109: 3 | B109: =IF(OR(C109="s",C109=0),OFFSET(B109,-1,0),C109) -> 3 | C109: =IF(OFFSET(C109,-1,0)="L",1,IF(OFFSET(C109,-1,0)=1,2,IF(OR(A109="s",A109=0),"S",IF(AND(OFFSET(C109,-1,0)=2,A109=4),3,IF(AND(OR(OFFSET(C109,-1,0)="s",OFFSET(C109,-1,0)=0),A109<>"s",A109>OFFSET(B109,-1,0)),OFFSET(B109,-1,0),A109))))) -> 3 | D109: =IF(OR(C109="S",C109=0),0,IF(ISERROR(K109),J109,SMALL(J109:K109,1))) -> 66 | E109: =IF($C109=1,OFFSET(E109,-1,0)+1,OFFSET(E109,-1,0)) -> 1 | F109: =IF($C109=1,0,IF($C109=2,OFFSET(F109,-1,0)+1,OFFSET(F109,-1,0))) -> 6 | G109: =IF(AND($C109<=2,$C109<>0),0,IF($C109=3,OFFSET(G109,-1,0)+1,OFFSET(G109,-1,0))) -> 1 | H109: =IF(AND($C109<=3,$C109<>0),0,IF($C109=4,OFFSET(H109,-1,0)+1,OFFSET(H109,-1,0))) -> 0 | I109: 0 | J109: 117 | K109: 66 | L109: =IF(OR(W109>0,$C109=1),"F","") ->  | M109: Nível 3 | N109: Nível 3 | O109: - | P109: SINAPI | R109: SUBESTAÇÃO 150 KVA | S109: - | W109: 0
A110: S | B110: 3 | C110: S | D110: 0 | E110: 1 | F110: 6 | G110: 1 | H110: 0 | I110: 0 | J110: 0 | K110: 0 | M110: Serviço | N110: Serviço | O110: - | P110: SINAPI | Q110: 73767/2 | R110: ALCA PRE-FORMADA DISTRIBUIÇÃO EM ACO RECOBERTO COM ALUMINIO PARA CABO 25MM2, ENCAPADO. FORNECIMENTO E INSTALAÇÃO. | S110: UN | T110: 1 | W110: 0
A111: S | B111: 3 | C111: S | D111: 0 | E111: 1 | F111: 6 | G111: 1 | H111: 0 | I111: 0 | J111: 0 | K111: 0 | M111: Serviço | N111: Serviço | O111: - | P111: AGETOP | Q111: 70252 | R111: ARRUELA LISA D=5/16" | S111: Un | T111: 8 | W111: 0
A112: S | B112: 3 | C112: S | D112: 0 | E112: 1 | F112: 6 | G112: 1 | H112: 0 | I112: 0 | J112: 0 | K112: 0 | M112: Serviço | N112: Serviço | O112: - | P112: AGETOP | Q112: 70268 | R112: BARRA DE COBRE 2" X 3/16" (2,0865 KG/M) | S112: m | T112: 1.5 | W112: 0
A113: S | B113: 3 | C113: S | D113: 0 | E113: 1 | F113: 6 | G113: 1 | H113: 0 | I113: 0 | J113: 0 | K113: 0 | M113: Serviço | N113: Serviço | O113: - | P113: SINAPI | Q113: 91175 | R113: FIXAÇÃO DE TUBOS VERTICAIS DE PPR DIÂMETROS MAIORES QUE 75 MM COM ABRAÇADEIRA METÁLICA RÍGIDA TIPO D 3", FIXADA EM PERFILADO EM ALVENARIA. AF_05/2015 | S113: M | T113: 6 | W113: 0
A114: S | B114: 3 | C114: S | D114: 0 | E114: 1 | F114: 6 | G114: 1 | H114: 0 | I114: 0 | J114: 0 | K114: 0 | M114: Serviço | N114: Serviço | O114: - | P114: AGETOP | Q114: 70386 | R114: BRAÇO C AÇO GALVANIZADO , CONFORME NTD-17 | S114: un | T114: 1 | W114: 0
A115: S | B115: 3 | C115: S | D115: 0 | E115: 1 | F115: 6 | G115: 1 | H115: 0 | I115: 0 | J115: 0 | K115: 0 | M115: Serviço | N115: Serviço | O115: - | P115: AGETOP | Q115: 70422 | R115: BUCHA E ARRUELA METALICA DIAM. 1" | S115: PR | T115: 4 | W115: 0
A116: S | B116: 3 | C116: S | D116: 0 | E116: 1 | F116: 6 | G116: 1 | H116: 0 | I116: 0 | J116: 0 | K116: 0 | M116: Serviço | N116: Serviço | O116: - | P116: AGETOP | Q116: 70428 | R116: BUCHA E ARRUELA METALICA DIAM. 4" | S116: PR | T116: 3 | W116: 0
A117: S | B117: 3 | C117: S | D117: 0 | E117: 1 | F117: 6 | G117: 1 | H117: 0 | I117: 0 | J117: 0 | K117: 0 | M117: Serviço | N117: Serviço | O117: - | P117: SINAPI | Q117: 92980 | R117: CABO DE COBRE FLEXÍVEL ISOLADO, 10 MM², ANTI-CHAMA 0,6/1,0 KV, PARA DISTRIBUIÇÃO - FORNECIMENTO E INSTALAÇÃO. AF_12/2015 | S117: M | T117: 5 | W117: 0
A118: S | B118: 3 | C118: S | D118: 0 | E118: 1 | F118: 6 | G118: 1 | H118: 0 | I118: 0 | J118: 0 | K118: 0 | M118: Serviço | N118: Serviço | O118: - | P118: SINAPI | Q118: 92992 | R118: CABO DE COBRE FLEXÍVEL ISOLADO, 95 MM², ANTI-CHAMA 0,6/1,0 KV, PARA DISTRIBUIÇÃO - FORNECIMENTO E INSTALAÇÃO. AF_12/2015 | S118: M | T118: 60 | W118: 0
A119: S | B119: 3 | C119: S | D119: 0 | E119: 1 | F119: 6 | G119: 1 | H119: 0 | I119: 0 | J119: 0 | K119: 0 | M119: Serviço | N119: Serviço | O119: - | P119: SINAPI | Q119: 92996 | R119: CABO DE COBRE FLEXÍVEL ISOLADO, 150 MM², ANTI-CHAMA 0,6/1,0 KV, PARA DISTRIBUIÇÃO - FORNECIMENTO E INSTALAÇÃO. AF_12/2015 | S119: M | T119: 220 | W119: 0
A120: S | B120: 3 | C120: S | D120: 0 | E120: 1 | F120: 6 | G120: 1 | H120: 0 | I120: 0 | J120: 0 | K120: 0 | M120: Serviço | N120: Serviço | O120: - | P120: AGETOP | Q120: 70543 | R120: CABO DE COBRE NÚ No. 35 MM2 | S120: M | T120: 3 | W120: 0
A121: S | B121: 3 | C121: S | D121: 0 | E121: 1 | F121: 6 | G121: 1 | H121: 0 | I121: 0 | J121: 0 | K121: 0 | M121: Serviço | N121: Serviço | O121: - | P121: SINAPI | Q121: 96977 | R121: CORDOALHA DE COBRE NU 50 MM², ENTERRADA, SEM ISOLADOR - FORNECIMENTO E INSTALAÇÃO. AF_12/2017 | S121: M | T121: 45 | W121: 0
A122: S | B122: 3 | C122: S | D122: 0 | E122: 1 | F122: 6 | G122: 1 | H122: 0 | I122: 0 | J122: 0 | K122: 0 | M122: Serviço | N122: Serviço | O122: - | P122: AGETOP | Q122: 70696 | R122: CAIXA METÁLICA PARA PROTEÇÃO GERAL 820X750X266MM DE 250A A 350A | S122: Un | T122: 1 | W122: 0
A123: S | B123: 3 | C123: S | D123: 0 | E123: 1 | F123: 6 | G123: 1 | H123: 0 | I123: 0 | J123: 0 | K123: 0 | M123: Serviço | N123: Serviço | O123: - | P123: AGETOP | Q123: 70697 | R123: CAIXA METÁLICA PARA T.C. 820X750X266MM - 250 A 350A | S123: Un | T123: 1 | W123: 0
A124: =CHOOSE(1+LOG(1+2*(ORÇAMENTO.Nivel="Nível 1")+4*(ORÇAMENTO.Nivel="Nível 2")+8*(ORÇAMENTO.Nivel="Nível 3")+16*(ORÇAMENTO.Nivel="Nível 4")+32*(ORÇAMENTO.Nivel="Serviço"),2),0,1,2,3,4,"S") -> S | B124: 3 | C124: S | D124: 0 | E124: 1 | F124: 6 | G124: 1 | H124: 0 | I124: =IF(AND($C124<=4,$C124<>0),0,IF(AND($C124="S",$W124>0),OFFSET(I124,-1,0)+1,OFFSET(I124,-1,0))) -> 0 | J124: 0 | K124: 0 | M124: Serviço | N124: Serviço | O124: - | P124: SINAPI | Q124: 97893 | R124: CAIXA ENTERRADA ELÉTRICA RETANGULAR, EM ALVENARIA COM BLOCOS DE CONCRETO, FUNDO COM BRITA, DIMENSÕES INTERNAS: 0,8X0,8X0,6 M. AF_05/2018 | S124: UN | T124: 1 | W124: 0
A125: S | B125: 3 | C125: S | D125: 0 | E125: 1 | F125: 6 | G125: 1 | H125: 0 | I125: 0 | J125: 0 | K125: 0 | M125: Serviço | N125: Serviço | O125: - | P125: AGETOP | Q125: 70771 | R125: CANTONEIRA AUXILIAR PARA BRAÇO TIPO C | S125: un | T125: 1 | W125: 0
A126: S | B126: 3 | C126: S | D126: 0 | E126: 1 | F126: 6 | G126: 1 | H126: 0 | I126: 0 | J126: 0 | K126: 0 | L126: =IF(OR(W126>0,$C126=1),"F","") ->  | M126: Serviço | N126: Serviço | O126: - | P126: AGETOP | Q126: 70920 | R126: CINTA DE ACO GALVANIZADO DIAM.190 MM | S126: Un | T126: 1 | W126: 0
A127: S | B127: 3 | C127: S | D127: 0 | E127: =IF($C127=1,OFFSET(E127,-1,0)+1,OFFSET(E127,-1,0)) -> 1 | F127: =IF($C127=1,0,IF($C127=2,OFFSET(F127,-1,0)+1,OFFSET(F127,-1,0))) -> 6 | G127: =IF(AND($C127<=2,$C127<>0),0,IF($C127=3,OFFSET(G127,-1,0)+1,OFFSET(G127,-1,0))) -> 1 | H127: =IF(AND($C127<=3,$C127<>0),0,IF($C127=4,OFFSET(H127,-1,0)+1,OFFSET(H127,-1,0))) -> 0 | I127: 0 | J127: 0 | K127: 0 | M127: Serviço | N127: Serviço | O127: - | P127: AGETOP | Q127: 70921 | R127: CINTA DE ACO GALVANIZADO DIAM.220 MM | S127: Un | T127: 2 | W127: 0
A128: S | B128: 3 | C128: S | D128: 0 | E128: 1 | F128: 6 | G128: 1 | H128: 0 | I128: 0 | J128: 0 | K128: 0 | M128: Serviço | N128: Serviço | O128: - | P128: AGETOP | Q128: 70922 | R128: CINTA DE ACO GALVANIZADO DIAM.230MM | S128: Un | T128: 2 | W128: 0
A129: S | B129: 3 | C129: S | D129: 0 | E129: 1 | F129: 6 | G129: 1 | H129: 0 | I129: 0 | J129: 0 | K129: 0 | M129: Serviço | N129: Serviço | O129: - | P129: AGETOP | Q129: 71016 | R129: CONECTOR DE COMPRESSÃO FORMATO H PARA CABO 25 A 70 MM2 | S129: un | T129: 4 | W129: 0
A130: S | B130: 3 | C130: S | D130: 0 | E130: 1 | F130: 6 | G130: 1 | H130: 0 | I130: 0 | J130: 0 | K130: 0 | M130: Serviço | N130: Serviço | O130: - | P130: AGETOP | Q130: 71020 | R130: CONECTOR PARAL. ALUM.EXTRUD.CA-CU-10,0D.10-2-1 PARAF. | S130: Un | T130: 6 | W130: 0
A131: S | B131: 3 | C131: S | D131: 0 | E131: 1 | F131: 6 | G131: 1 | H131: 0 | I131: 0 | J131: 0 | K131: 0 | M131: Serviço | N131: Serviço | O131: - | P131: SINAPI | Q131: 72272 | R131: CONECTOR PARAFUSO FENDIDO SPLIT-BOLT - PARA CABO DE 35MM2 - FORNECIMENTO E INSTALACAO | S131: UN | T131: 1 | W131: 0
A132: S | B132: 3 | C132: S | D132: 0 | E132: 1 | F132: 6 | G132: 1 | H132: 0 | I132: 0 | J132: 0 | K132: 0 | M132: Serviço | N132: Serviço | O132: - | P132: AGETOP | Q132: 71040 | R132: CONECTOR TIPO PARAFUSO FENDIDO 150 MM2 | S132: Un | T132: 4 | W132: 0
A133: S | B133: =IF(OR(C133="s",C133=0),OFFSET(B133,-1,0),C133) -> 3 | C133: =IF(OFFSET(C133,-1,0)="L",1,IF(OFFSET(C133,-1,0)=1,2,IF(OR(A133="s",A133=0),"S",IF(AND(OFFSET(C133,-1,0)=2,A133=4),3,IF(AND(OR(OFFSET(C133,-1,0)="s",OFFSET(C133,-1,0)=0),A133<>"s",A133>OFFSET(B133,-1,0)),OFFSET(B133,-1,0),A133))))) -> S | D133: =IF(OR(C133="S",C133=0),0,IF(ISERROR(K133),J133,SMALL(J133:K133,1))) -> 0 | E133: 1 | F133: 6 | G133: 1 | H133: 0 | I133: 0 | J133: 0 | K133: 0 | M133: Serviço | N133: Serviço | O133: - | P133: AGETOP | Q133: 71142 | R133: CURVA DE 90 GRAUS DE PVC RIGIDO DIAM. 1" | S133: Un | T133: 1 | W133: 0
A134: S | B134: 3 | C134: S | D134: 0 | E134: 1 | F134: 6 | G134: 1 | H134: 0 | I134: 0 | J134: 0 | K134: 0 | M134: Serviço | N134: Serviço | O134: - | P134: SINAPI | Q134: 93026 | R134: CURVA 90 GRAUS PARA ELETRODUTO, PVC, ROSCÁVEL, DN 110 MM (4") - FORNECIMENTO E INSTALAÇÃO. AF_12/2015 | S134: UN | T134: 1 | W134: 0
A135: S | B135: 3 | C135: S | D135: 0 | E135: 1 | F135: 6 | G135: 1 | H135: 0 | I135: 0 | J135: 0 | K135: 0 | M135: Serviço | N135: Serviço | O135: - | P135: AGETOP | Q135: 71451 | R135: INTERRUPTOR DIFERENCIAL RESIDUAL (D.R.) BIPOLAR DE 40A-30mA | S135: Un | T135: 10 | W135: 0
A136: S | B136: 3 | C136: S | D136: 0 | E136: 1 | F136: 6 | G136: 1 | H136: 0 | I136: 0 | J136: 0 | K136: 0 | M136: Serviço | N136: Serviço | O136: - | P136: AGETOP | Q136: 71186 | R136: DISPOSITIVO DE PROTEÇÃO CONTRA SURTOS (D.P.S.) 275V DE 90KA | S136: Un | T136: 3 | W136: 0
A137: S | B137: 3 | C137: S | D137: 0 | E137: 1 | F137: 6 | G137: 1 | H137: 0 | I137: 0 | J137: 0 | K137: 0 | M137: Serviço | N137: Serviço | O137: - | P137: SINAPI | Q137: 74130/7 | R137: DISJUNTOR TERMOMAGNETICO TRIPOLAR EM CAIXA MOLDADA 250A 600V, FORNECIMENTO E INSTALACAO | S137: UN | T137: 2 | W137: 0
A138: S | B138: 3 | C138: S | D138: 0 | E138: 1 | F138: 6 | G138: 1 | H138: 0 | I138: 0 | J138: 0 | K138: 0 | M138: Serviço | N138: Serviço | O138: - | P138: AGETOP | Q138: 71202 | R138: ELETRODUTO DE PVC RIGIDO DIAMETRO 1" | S138: M | T138: 3 | W138: 0
A139: S | B139: 3 | C139: S | D139: 0 | E139: 1 | F139: 6 | G139: 1 | H139: 0 | I139: 0 | J139: 0 | K139: 0 | M139: Serviço | N139: Serviço | O139: - | P139: SINAPI | Q139: 93012 | R139: ELETRODUTO RÍGIDO ROSCÁVEL, PVC, DN 110 MM (4") - FORNECIMENTO E INSTALAÇÃO. AF_12/2015 | S139: M | T139: 55 | W139: 0
A140: S | B140: 3 | C140: S | D140: 0 | E140: 1 | F140: 6 | G140: 1 | H140: 0 | I140: 0 | J140: 0 | K140: 0 | M140: Serviço | N140: Serviço | O140: - | P140: AGETOP | Q140: 71218 | R140: ELETRODUTO EM AÇO GALVANIZADO A FOGO DIÂMETRO 4" - PESADO | S140: M | T140: 7 | W140: 0
A141: S | B141: 3 | C141: S | D141: 0 | E141: 1 | F141: 6 | G141: 1 | H141: 0 | I141: 0 | J141: 0 | K141: 0 | M141: Serviço | N141: Serviço | O141: - | P141: AGETOP | Q141: 71268 | R141: ELO FUSÍVEL 6 K | S141: Un | T141: 1 | W141: 0
A142: S | B142: 3 | C142: S | D142: 0 | E142: 1 | F142: 6 | G142: 1 | H142: 0 | I142: 0 | J142: 0 | K142: 0 | M142: Serviço | N142: Serviço | O142: - | P142: AGETOP | Q142: 71321 | R142: FITA DE AUTO FUSAO, ROLO E 10,00 MM | S142: Un | T142: 5 | W142: 0
A143: S | B143: 3 | C143: S | D143: 0 | E143: 1 | F143: 6 | G143: 1 | H143: 0 | I143: 0 | J143: 0 | K143: 0 | M143: Serviço | N143: Serviço | O143: - | P143: AGETOP | Q143: 71365 | R143: GRAMPO DE ANCORAGEM POLIMÉRICO | S143: un | T143: 3 | W143: 0
A144: S | B144: 3 | C144: S | D144: 0 | E144: 1 | F144: 6 | G144: 1 | H144: 0 | I144: 0 | J144: 0 | K144: 0 | M144: Serviço | N144: Serviço | O144: - | P144: AGETOP | Q144: 71381 | R144: HASTE REV.COBRE(COPPERWELD) 5/8" X 3,00 M C/CONECTOR | S144: Un | T144: 9 | W144: 0
A145: S | B145: 3 | C145: S | D145: 0 | E145: 1 | F145: 6 | G145: 1 | H145: 0 | I145: 0 | J145: 0 | K145: 0 | M145: Serviço | N145: Serviço | O145: - | P145: AGETOP | Q145: 70255 | R145: ATERRAMENTO - SOLDA EXOTÉRMICA - CARTUCHO 90 G | S145: un | T145: 9 | W145: 0
A146: S | B146: 3 | C146: S | D146: 0 | E146: 1 | F146: 6 | G146: 1 | H146: 0 | I146: 0 | J146: 0 | K146: 0 | M146: Serviço | N146: Serviço | O146: - | P146: AGETOP | Q146: 71463 | R146: ISOLADOR EPOXI 50X40 (BUJAO) | S146: Un | T146: 3 | W146: 0
A147: S | B147: 3 | C147: S | D147: 0 | E147: 1 | F147: 6 | G147: 1 | H147: 0 | I147: 0 | J147: =IF(OR($C147="S",$C147=0),0,MATCH(0,OFFSET($D147,1,$C147,ROW($C$431)-ROW($C147)),0)) -> 0 | K147: =IF(OR($C147="S",$C147=0),0,MATCH(OFFSET($D147,0,$C147)+1,OFFSET($D147,1,$C147,ROW($C$431)-ROW($C147)),0)) -> 0 | M147: Serviço | N147: Serviço | O147: - | P147: AGETOP | Q147: 71476 | R147: ISOLADOR DE ANCORAGEM POLIMÉRICO 15KV | S147: un | T147: 1 | W147: 0
A148: S | B148: 3 | C148: S | D148: 0 | E148: 1 | F148: 6 | G148: 1 | H148: 0 | I148: 0 | J148: 0 | K148: 0 | M148: Serviço | N148: Serviço | O148: - | P148: AGETOP | Q148: 71510 | R148: LACO PREFORMADO DE DISTRIBUICAO | S148: Un | T148: 1 | W148: 0
A149: S | B149: 3 | C149: S | D149: 0 | E149: 1 | F149: 6 | G149: 1 | H149: 0 | I149: 0 | J149: 0 | K149: 0 | M149: Serviço | N149: Serviço | O149: - | P149: AGETOP | Q149: 71742 | R149: LUVA PVC ROSQUEAVEL DIAMETRO 1" | S149: Un | T149: 1 | W149: 0
A150: S | B150: 3 | C150: S | D150: 0 | E150: 1 | F150: 6 | G150: 1 | H150: 0 | I150: 0 | J150: 0 | K150: 0 | M150: Serviço | N150: Serviço | O150: - | P150: SINAPI | Q150: 93017 | R150: LUVA PARA ELETRODUTO, PVC, ROSCÁVEL, DN 110 MM (4") - FORNECIMENTO E INSTALAÇÃO. AF_12/2015 | S150: UN | T150: 27.5 | W150: 0 | X150: Referência: AGETOP - 71748
A151: S | B151: 3 | C151: S | D151: 0 | E151: 1 | F151: 6 | G151: 1 | H151: 0 | I151: 0 | J151: 0 | K151: 0 | M151: Serviço | N151: Serviço | O151: - | P151: AGETOP | Q151: 71708 | R151: LUVA EM AÇO GALVANIZADO DIÂMETRO 4" | S151: Un | T151: 4 | W151: 0
A152: S | B152: 3 | C152: S | D152: 0 | E152: 1 | F152: 6 | G152: 1 | H152: 0 | I152: 0 | J152: 0 | K152: 0 | M152: Serviço | N152: Serviço | O152: - | P152: AGETOP | Q152: 71750 | R152: MANILHA-SAPATILHA EM AÇO GALVANIZADO | S152: un | T152: 1 | W152: 0
A153: S | B153: 3 | C153: S | D153: 0 | E153: 1 | F153: 6 | G153: 1 | H153: 0 | I153: 0 | J153: 0 | K153: 0 | M153: Serviço | N153: Serviço | O153: - | P153: AGETOP | Q153: 71761 | R153: MURETA MEDIÇÃO ALVEN. 1 1/2 V.(35CM) REBOC.C/PINTURA ACRÍL. E LAJE CONC. 20MPA MALHA 8.0MM CADA 10CM REVEST.C/ARGAMASSA 1:3 C/ IMPERMEABILIZANTE | S153: m2 | T153: 4 | W153: 0
A154: S | B154: 3 | C154: S | D154: 0 | E154: 1 | F154: 6 | G154: 1 | H154: 0 | I154: 0 | J154: 0 | K154: 0 | M154: Serviço | N154: Serviço | O154: - | P154: AGETOP | Q154: 71773 | R154: NIPLE METALICO Fo.Zo. DIAMETRO 1" | S154: Un | T154: 1 | W154: 0
A155: S | B155: 3 | C155: S | D155: 0 | E155: 1 | F155: 6 | G155: 1 | H155: 0 | I155: 0 | J155: 0 | K155: 0 | M155: Serviço | N155: Serviço | O155: - | P155: AGETOP | Q155: 71780 | R155: NIPLE METALICO Fo.Zo. DIAMETRO 4" | S155: Un | T155: 2 | W155: 0
A156: S | B156: 3 | C156: S | D156: 0 | E156: 1 | F156: 6 | G156: 1 | H156: 0 | I156: 0 | J156: 0 | K156: 0 | M156: Serviço | N156: Serviço | O156: - | P156: AGETOP | Q156: 85047 | R156: NIPLE DUPLO FERRO GALVANIZADO 2.1/2" | S156: Un | T156: 1 | W156: 0
A157: S | B157: 3 | C157: S | D157: 0 | E157: 1 | F157: 6 | G157: 1 | H157: 0 | I157: 0 | J157: 0 | K157: 0 | M157: Serviço | N157: Serviço | O157: - | P157: AGETOP | Q157: 71795 | R157: OLHAL PARA PARAFUSO | S157: un | T157: 3 | W157: 0
A158: S | B158: 3 | C158: S | D158: 0 | E158: 1 | F158: 6 | G158: 1 | H158: 0 | I158: 0 | J158: 0 | K158: 0 | M158: Serviço | N158: Serviço | O158: - | P158: AGETOP | Q158: 71835 | R158: PARAFUSO CABEÇA ABAULADA (FRANCES) M16 X 45 MM | S158: Un | T158: 3 | W158: 0
A159: S | B159: 3 | C159: S | D159: 0 | E159: 1 | F159: 6 | G159: 1 | H159: 0 | I159: 0 | J159: 0 | K159: 0 | M159: Serviço | N159: Serviço | O159: - | P159: AGETOP | Q159: 71841 | R159: PARAFUSO CABEÇA ABAULADA (FRANCES) M16 X 150 MM | S159: Un | T159: 3 | W159: 0
A160: S | B160: 3 | C160: S | D160: 0 | E160: 1 | F160: 6 | G160: 1 | H160: 0 | I160: 0 | J160: 0 | K160: 0 | M160: Serviço | N160: Serviço | O160: - | P160: AGETOP | Q160: 71833 | R160: PARA RAIOS DISTRIBUIDOR POLIMÉRICO ÓXIDO DE ZINCO S/CENTELHADOR C/ DESLIGAMENTO AUTOMÁTICO 15KV,10KA | S160: Un | T160: 3 | W160: 0
A161: S | B161: 3 | C161: S | D161: 0 | E161: 1 | F161: 6 | G161: 1 | H161: 0 | I161: 0 | J161: 0 | K161: 0 | M161: Serviço | N161: Serviço | O161: - | P161: AGETOP | Q161: 71997 | R161: POSTE - FUNDAÇÃO EM CONCRETO SIMPLES DA BASE DOS POSTES 11/600 PARA TRAFO ( DIAM. 1000MM) | S161: m | T161: 0.3 | W161: 0
A162: S | B162: 3 | C162: S | D162: 0 | E162: 1 | F162: 6 | G162: 1 | H162: 0 | I162: 0 | J162: 0 | K162: 0 | M162: Serviço | N162: Serviço | O162: - | P162: AGETOP | Q162: 72061 | R162: POSTE DE CONCRETO SC 11/600 - SEM FUNDAÇÃO/CONCRETO | S162: Un | T162: 1 | W162: 0
A163: S | B163: 3 | C163: S | D163: 0 | E163: 1 | F163: 6 | G163: 1 | H163: 0 | I163: 0 | J163: 0 | K163: 0 | M163: Serviço | N163: Serviço | O163: - | P163: AGETOP | Q163: 72080 | R163: POSTE/TRAFO - CAMINHÃO MUNCK 12 TON. (MÍNIMO 4H/DIA) | S163: H | T163: 4 | W163: 0
A164: S | B164: 3 | C164: S | D164: 0 | E164: 1 | F164: 6 | G164: 1 | H164: 0 | I164: 0 | J164: 0 | K164: 0 | M164: Serviço | N164: Serviço | O164: - | P164: AGETOP | Q164: 72329 | R164: SAPATILHA DE AÇO GALVANIZADO PARA POSTE COM TRANSFORMADOR | S164: un | T164: 3 | W164: 0
A165: S | B165: 3 | C165: S | D165: 0 | E165: 1 | F165: 6 | G165: 1 | H165: 0 | I165: 0 | J165: 0 | K165: 0 | M165: Serviço | N165: Serviço | O165: - | P165: SINAPI | Q165: 73624 | R165: SUPORTE PARA TRANSFORMADOR EM POSTE DE CONCRETO CIRCULAR | S165: UN | T165: 2 | W165: 0
A166: S | B166: 3 | C166: S | D166: 0 | E166: 1 | F166: 6 | G166: 1 | H166: 0 | I166: 0 | J166: 0 | K166: 0 | M166: Serviço | N166: Serviço | O166: - | P166: AGETOP | Q166: 72518 | R166: TERMINAL DE PRESSAO 10 MM2 | S166: Un | T166: 1 | W166: 0
A167: S | B167: 3 | C167: S | D167: 0 | E167: 1 | F167: 6 | G167: 1 | H167: 0 | I167: 0 | J167: 0 | K167: 0 | M167: Serviço | N167: Serviço | O167: - | P167: AGETOP | Q167: 72538 | R167: TERMINAL DE PRESSAO 95 MM2 | S167: Un | T167: 2 | W167: 0
A168: S | B168: 3 | C168: S | D168: 0 | E168: 1 | F168: 6 | G168: 1 | H168: 0 | I168: 0 | J168: 0 | K168: 0 | M168: Serviço | N168: Serviço | O168: - | P168: AGETOP | Q168: 72550 | R168: TERMINAL DE PRESSAO 150 MM2 | S168: Un | T168: 10 | W168: 0
A169: S | B169: 3 | C169: S | D169: 0 | E169: 1 | F169: 6 | G169: 1 | H169: 0 | I169: 0 | J169: 0 | K169: 0 | M169: Serviço | N169: Serviço | O169: - | P169: SINAPI | Q169: 73857/3 | R169: TRANSFORMADOR DISTRIBUICAO 150KVA TRIFASICO 60HZ CLASSE 15KV IMERSO EM ÓLEO MINERAL FORNECIMENTO E INSTALACAO | S169: UN | T169: 1 | W169: 0
A170: S | B170: 3 | C170: S | D170: 0 | E170: 1 | F170: 6 | G170: 1 | H170: 0 | I170: 0 | J170: 0 | K170: 0 | M170: Serviço | N170: Serviço | O170: - | P170: SINAPI | Q170: 88543 | R170: ARMACAO SECUNDARIA OU REX COMPLETA PARA TRESLINHAS-FORNECIMENTO E INSTALACAO. | S170: UN | T170: 1 | W170: 0
A171: S | B171: 3 | C171: S | D171: 0 | E171: 1 | F171: 6 | G171: 1 | H171: 0 | I171: 0 | J171: 0 | K171: 0 | M171: Serviço | N171: Serviço | O171: - | P171: COMPOSIÇÃO | Q171: COMP 046_SEE | R171: CAPUZ PARA PROTEÇÃO DOS PARA RAIOS | S171: UN | T171: 3 | W171: 0
A172: S | B172: 3 | C172: S | D172: 0 | E172: 1 | F172: 6 | G172: 1 | H172: 0 | I172: 0 | J172: 0 | K172: 0 | M172: Serviço | N172: Serviço | O172: - | P172: COMPOSIÇÃO | Q172: COMP 047_SEE | R172: CAPUZ DE PROTEÇÃO PARA BUCHA DE TRANSFORMADOR | S172: UN | T172: 3 | W172: 0
A173: S | B173: 3 | C173: S | D173: 0 | E173: 1 | F173: 6 | G173: 1 | H173: 0 | I173: 0 | J173: 0 | K173: 0 | M173: Serviço | N173: Serviço | O173: - | P173: COMPOSIÇÃO | Q173: COMP 048_SEE | R173: HASTE ROSQUEADA "TIRANTE" 3/8" | S173: M | T173: 0.5 | W173: 0
A174: S | B174: 3 | C174: S | D174: 0 | E174: 1 | F174: 6 | G174: 1 | H174: 0 | I174: 0 | J174: 0 | K174: 0 | M174: Serviço | N174: Serviço | O174: - | P174: COMPOSIÇÃO | Q174: COMP 049_SEE | R174: PORCA SEXTAVADA 3/8" | S174: UN | T174: 8 | W174: 0
A175: 3 | B175: =IF(OR(C175="s",C175=0),OFFSET(B175,-1,0),C175) -> 3 | C175: =IF(OFFSET(C175,-1,0)="L",1,IF(OFFSET(C175,-1,0)=1,2,IF(OR(A175="s",A175=0),"S",IF(AND(OFFSET(C175,-1,0)=2,A175=4),3,IF(AND(OR(OFFSET(C175,-1,0)="s",OFFSET(C175,-1,0)=0),A175<>"s",A175>OFFSET(B175,-1,0)),OFFSET(B175,-1,0),A175))))) -> 3 | D175: =IF(OR(C175="S",C175=0),0,IF(ISERROR(K175),J175,SMALL(J175:K175,1))) -> 51 | E175: =IF($C175=1,OFFSET(E175,-1,0)+1,OFFSET(E175,-1,0)) -> 1 | F175: =IF($C175=1,0,IF($C175=2,OFFSET(F175,-1,0)+1,OFFSET(F175,-1,0))) -> 6 | G175: =IF(AND($C175<=2,$C175<>0),0,IF($C175=3,OFFSET(G175,-1,0)+1,OFFSET(G175,-1,0))) -> 2 | H175: =IF(AND($C175<=3,$C175<>0),0,IF($C175=4,OFFSET(H175,-1,0)+1,OFFSET(H175,-1,0))) -> 0 | I175: 0 | J175: 51 | K175: 103 | L175: =IF(OR(W175>0,$C175=1),"F","") ->  | M175: Nível 3 | N175: Nível 3 | O175: - | P175: SINAPI | R175: REFORMA ELÉTRICA | S175: - | W175: 0
A176: S | B176: 3 | C176: S | D176: 0 | E176: 1 | F176: 6 | G176: 2 | H176: 0 | I176: 0 | J176: 0 | K176: 0 | M176: Serviço | N176: Serviço | O176: - | P176: AGETOP | Q176: 70351 | R176: BRACADEIRA METALICA TIPO "U" DIAM. 3/4" | S176: Un | T176: 700 | W176: 0
A177: S | B177: 3 | C177: S | D177: 0 | E177: 1 | F177: 6 | G177: 2 | H177: 0 | I177: 0 | J177: 0 | K177: 0 | M177: Serviço | N177: Serviço | O177: - | P177: AGETOP | Q177: 70352 | R177: BRACADEIRA METALICA TIPO "U" DIAM. 1" | S177: Un | T177: 208 | W177: 0
A178: S | B178: 3 | C178: S | D178: 0 | E178: 1 | F178: 6 | G178: 2 | H178: 0 | I178: 0 | J178: 0 | K178: 0 | M178: Serviço | N178: Serviço | O178: - | P178: AGETOP | Q178: 70354 | R178: BRACADEIRA METALICA TIPO "U" DIAM. 1.1/2" | S178: Un | T178: 35 | W178: 0
A179: S | B179: 3 | C179: S | D179: 0 | E179: 1 | F179: 6 | G179: 2 | H179: 0 | I179: 0 | J179: 0 | K179: 0 | M179: Serviço | N179: Serviço | O179: - | P179: AGETOP | Q179: 70355 | R179: BRACADEIRA METALICA TIPO "U" DIAM. 2" | S179: Un | T179: 125 | W179: 0
A180: S | B180: 3 | C180: S | D180: 0 | E180: 1 | F180: 6 | G180: 2 | H180: 0 | I180: 0 | J180: 0 | K180: 0 | M180: Serviço | N180: Serviço | O180: - | P180: AGETOP | Q180: 70421 | R180: BUCHA E ARRUELA METALICA DIAM. 3/4" | S180: PR | T180: 30 | W180: 0
A181: S | B181: 3 | C181: S | D181: 0 | E181: 1 | F181: 6 | G181: 2 | H181: 0 | I181: 0 | J181: 0 | K181: 0 | M181: Serviço | N181: Serviço | O181: - | P181: AGETOP | Q181: 70422 | R181: BUCHA E ARRUELA METALICA DIAM. 1" | S181: PR | T181: 30 | W181: 0
A182: S | B182: 3 | C182: S | D182: 0 | E182: 1 | F182: 6 | G182: 2 | H182: 0 | I182: 0 | J182: 0 | K182: 0 | M182: Serviço | N182: Serviço | O182: - | P182: AGETOP | Q182: 70424 | R182: BUCHA E ARRUELA METALICA DIAM. 1.1/2" | S182: PR | T182: 10 | W182: 0
A183: S | B183: 3 | C183: S | D183: 0 | E183: 1 | F183: 6 | G183: 2 | H183: 0 | I183: 0 | J183: 0 | K183: 0 | M183: Serviço | N183: Serviço | O183: - | P183: AGETOP | Q183: 70425 | R183: BUCHA E ARRUELA METALICA DIAM. 2" | S183: PR | T183: 10 | W183: 0
A184: S | B184: 3 | C184: S | D184: 0 | E184: 1 | F184: 6 | G184: 2 | H184: 0 | I184: 0 | J184: 0 | K184: 0 | M184: Serviço | N184: Serviço | O184: - | P184: SINAPI | Q184: 91926 | R184: CABO DE COBRE FLEXÍVEL ISOLADO, 2,5 MM², ANTI-CHAMA 450/750 V, PARA CIRCUITOS TERMINAIS - FORNECIMENTO E INSTALAÇÃO. AF_12/2015 | S184: M | T184: 3814 | W184: 0 | X184: Referência: AGETOP - 70563
A185: S | B185: 3 | C185: S | D185: 0 | E185: 1 | F185: 6 | G185: 2 | H185: 0 | I185: 0 | J185: 0 | K185: 0 | M185: Serviço | N185: Serviço | O185: - | P185: SINAPI | Q185: 91929 | R185: CABO DE COBRE FLEXÍVEL ISOLADO, 4 MM², ANTI-CHAMA 0,6/1,0 KV, PARA CIRCUITOS TERMINAIS - FORNECIMENTO E INSTALAÇÃO. AF_12/2015 | S185: M | T185: 2956 | W185: 0 | X185: Referência: AGETOP - 70582
A186: S | B186: 3 | C186: S | D186: 0 | E186: 1 | F186: 6 | G186: 2 | H186: 0 | I186: 0 | J186: 0 | K186: 0 | M186: Serviço | N186: Serviço | O186: - | P186: SINAPI | Q186: 91931 | R186: CABO DE COBRE FLEXÍVEL ISOLADO, 6 MM², ANTI-CHAMA 0,6/1,0 KV, PARA CIRCUITOS TERMINAIS - FORNECIMENTO E INSTALAÇÃO. AF_12/2015 | S186: M | T186: 1978 | W186: 0 | X186: Referência: AGETOP - 70583
A187: S | B187: 3 | C187: S | D187: 0 | E187: 1 | F187: 6 | G187: 2 | H187: 0 | I187: 0 | J187: 0 | K187: 0 | M187: Serviço | N187: Serviço | O187: - | P187: SINAPI | Q187: 91933 | R187: CABO DE COBRE FLEXÍVEL ISOLADO, 10 MM², ANTI-CHAMA 0,6/1,0 KV, PARA CIRCUITOS TERMINAIS - FORNECIMENTO E INSTALAÇÃO. AF_12/2015 | S187: M | T187: 340 | W187: 0 | X187: Referência: AGETOP - 70584
A188: S | B188: 3 | C188: S | D188: 0 | E188: 1 | F188: 6 | G188: 2 | H188: 0 | I188: 0 | J188: 0 | K188: 0 | M188: Serviço | N188: Serviço | O188: - | P188: SINAPI | Q188: 92982 | R188: CABO DE COBRE FLEXÍVEL ISOLADO, 16 MM², ANTI-CHAMA 0,6/1,0 KV, PARA DISTRIBUIÇÃO - FORNECIMENTO E INSTALAÇÃO. AF_12/2015 | S188: M | T188: 237.5 | W188: 0 | X188: Referência: AGETOP - 70510
A189: =CHOOSE(1+LOG(1+2*(ORÇAMENTO.Nivel="Nível 1")+4*(ORÇAMENTO.Nivel="Nível 2")+8*(ORÇAMENTO.Nivel="Nível 3")+16*(ORÇAMENTO.Nivel="Nível 4")+32*(ORÇAMENTO.Nivel="Serviço"),2),0,1,2,3,4,"S") -> S | B189: 3 | C189: S | D189: 0 | E189: 1 | F189: 6 | G189: 2 | H189: 0 | I189: =IF(AND($C189<=4,$C189<>0),0,IF(AND($C189="S",$W189>0),OFFSET(I189,-1,0)+1,OFFSET(I189,-1,0))) -> 0 | J189: 0 | K189: 0 | M189: Serviço | N189: Serviço | O189: - | P189: SINAPI | Q189: 92984 | R189: CABO DE COBRE FLEXÍVEL ISOLADO, 25 MM², ANTI-CHAMA 0,6/1,0 KV, PARA DISTRIBUIÇÃO - FORNECIMENTO E INSTALAÇÃO. AF_12/2015 | S189: M | T189: 950 | W189: 0 | X189: Referência: AGETOP - 70511
A190: S | B190: 3 | C190: S | D190: 0 | E190: 1 | F190: 6 | G190: 2 | H190: 0 | I190: 0 | J190: 0 | K190: 0 | M190: Serviço | N190: Serviço | O190: - | P190: SINAPI | Q190: 92867 | R190: CAIXA RETANGULAR 4" X 2" ALTA (2,00 M DO PISO), METÁLICA, INSTALADA EM PAREDE - FORNECIMENTO E INSTALAÇÃO. AF_12/2015 | S190: UN | T190: 100 | W190: 0
A191: S | B191: 3 | C191: S | D191: 0 | E191: 1 | F191: 6 | G191: 2 | H191: 0 | I191: 0 | J191: 0 | K191: 0 | L191: =IF(OR(W191>0,$C191=1),"F","") ->  | M191: Serviço | N191: Serviço | O191: - | P191: SINAPI | Q191: 92865 | R191: CAIXA OCTOGONAL 4" X 4", METÁLICA, INSTALADA EM LAJE - FORNECIMENTO E INSTALAÇÃO. AF_12/2015 | S191: UN | T191: 98 | W191: 0 | X191: Referência: AGETOP - 70682
A192: S | B192: 3 | C192: S | D192: 0 | E192: =IF($C192=1,OFFSET(E192,-1,0)+1,OFFSET(E192,-1,0)) -> 1 | F192: =IF($C192=1,0,IF($C192=2,OFFSET(F192,-1,0)+1,OFFSET(F192,-1,0))) -> 6 | G192: =IF(AND($C192<=2,$C192<>0),0,IF($C192=3,OFFSET(G192,-1,0)+1,OFFSET(G192,-1,0))) -> 2 | H192: =IF(AND($C192<=3,$C192<>0),0,IF($C192=4,OFFSET(H192,-1,0)+1,OFFSET(H192,-1,0))) -> 0 | I192: 0 | J192: 0 | K192: 0 | M192: Serviço | N192: Serviço | O192: - | P192: SINAPI | Q192: 92868 | R192: CAIXA RETANGULAR 4" X 2" MÉDIA (1,30 M DO PISO), METÁLICA, INSTALADA EM PAREDE - FORNECIMENTO E INSTALAÇÃO. AF_12/2015 | S192: UN | T192: 40 | W192: 0 | X192: Referência: AGETOP - 70691
A193: S | B193: 3 | C193: S | D193: 0 | E193: 1 | F193: 6 | G193: 2 | H193: 0 | I193: 0 | J193: 0 | K193: 0 | M193: Serviço | N193: Serviço | O193: - | P193: SINAPI | Q193: 97891 | R193: CAIXA ENTERRADA ELÉTRICA RETANGULAR, EM ALVENARIA COM BLOCOS DE CONCRETO, FUNDO COM BRITA, DIMENSÕES INTERNAS: 0,4X0,4X0,4 M. AF_05/2018 | S193: UN | T193: 7 | W193: 0
A194: S | B194: 3 | C194: S | D194: 0 | E194: 1 | F194: 6 | G194: 2 | H194: 0 | I194: 0 | J194: 0 | K194: 0 | M194: Serviço | N194: Serviço | O194: - | P194: SINAPI | Q194: 95817 | R194: CONDULETE DE PVC, TIPO X, PARA ELETRODUTO DE PVC SOLDÁVEL DN 25 MM (3/4''), APARENTE - FORNECIMENTO E INSTALAÇÃO. AF_11/2016 | S194: UN | T194: 150 | W194: 0
A195: S | B195: 3 | C195: S | D195: 0 | E195: 1 | F195: 6 | G195: 2 | H195: 0 | I195: 0 | J195: 0 | K195: 0 | M195: Serviço | N195: Serviço | O195: - | P195: SINAPI | Q195: 95818 | R195: CONDULETE DE PVC, TIPO X, PARA ELETRODUTO DE PVC SOLDÁVEL DN 32 MM (1''), APARENTE - FORNECIMENTO E INSTALAÇÃO. AF_11/2016 | S195: UN | T195: 60 | W195: 0
A196: S | B196: 3 | C196: S | D196: 0 | E196: 1 | F196: 6 | G196: 2 | H196: 0 | I196: 0 | J196: 0 | K196: 0 | M196: Serviço | N196: Serviço | O196: - | P196: SINAPI | Q196: 93653 | R196: DISJUNTOR MONOPOLAR TIPO DIN, CORRENTE NOMINAL DE 10A - FORNECIMENTO E INSTALAÇÃO. AF_04/2016 | S196: UN | T196: 12 | W196: 0
A197: S | B197: 3 | C197: S | D197: 0 | E197: 1 | F197: 6 | G197: 2 | H197: 0 | I197: 0 | J197: 0 | K197: 0 | M197: Serviço | N197: Serviço | O197: - | P197: SINAPI | Q197: 93654 | R197: DISJUNTOR MONOPOLAR TIPO DIN, CORRENTE NOMINAL DE 16A - FORNECIMENTO E INSTALAÇÃO. AF_04/2016 | S197: UN | T197: 16 | W197: 0
A198: S | B198: =IF(OR(C198="s",C198=0),OFFSET(B198,-1,0),C198) -> 3 | C198: =IF(OFFSET(C198,-1,0)="L",1,IF(OFFSET(C198,-1,0)=1,2,IF(OR(A198="s",A198=0),"S",IF(AND(OFFSET(C198,-1,0)=2,A198=4),3,IF(AND(OR(OFFSET(C198,-1,0)="s",OFFSET(C198,-1,0)=0),A198<>"s",A198>OFFSET(B198,-1,0)),OFFSET(B198,-1,0),A198))))) -> S | D198: =IF(OR(C198="S",C198=0),0,IF(ISERROR(K198),J198,SMALL(J198:K198,1))) -> 0 | E198: 1 | F198: 6 | G198: 2 | H198: 0 | I198: 0 | J198: 0 | K198: 0 | M198: Serviço | N198: Serviço | O198: - | P198: SINAPI | Q198: 93656 | R198: DISJUNTOR MONOPOLAR TIPO DIN, CORRENTE NOMINAL DE 25A - FORNECIMENTO E INSTALAÇÃO. AF_04/2016 | S198: UN | T198: 31 | W198: 0
A199: S | B199: 3 | C199: S | D199: 0 | E199: 1 | F199: 6 | G199: 2 | H199: 0 | I199: 0 | J199: 0 | K199: 0 | M199: Serviço | N199: Serviço | O199: - | P199: SINAPI | Q199: 93657 | R199: DISJUNTOR MONOPOLAR TIPO DIN, CORRENTE NOMINAL DE 32A - FORNECIMENTO E INSTALAÇÃO. AF_04/2016 | S199: UN | T199: 11 | W199: 0
A200: S | B200: 3 | C200: S | D200: 0 | E200: 1 | F200: 6 | G200: 2 | H200: 0 | I200: 0 | J200: 0 | K200: 0 | M200: Serviço | N200: Serviço | O200: - | P200: SINAPI | Q200: 93670 | R200: DISJUNTOR TRIPOLAR TIPO DIN, CORRENTE NOMINAL DE 25A - FORNECIMENTO E INSTALAÇÃO. AF_04/2016 | S200: UN | T200: 2 | W200: 0 | X200: Referência: AGETOP - 71173
A201: S | B201: 3 | C201: S | D201: 0 | E201: 1 | F201: 6 | G201: 2 | H201: 0 | I201: 0 | J201: 0 | K201: 0 | M201: Serviço | N201: Serviço | O201: - | P201: SINAPI | Q201: 93672 | R201: DISJUNTOR TRIPOLAR TIPO DIN, CORRENTE NOMINAL DE 40A - FORNECIMENTO E INSTALAÇÃO. AF_04/2016 | S201: UN | T201: 2 | W201: 0 | X201: Referência: AGETOP - 71174
A202: S | B202: 3 | C202: S | D202: 0 | E202: 1 | F202: 6 | G202: 2 | H202: 0 | I202: 0 | J202: 0 | K202: 0 | M202: Serviço | N202: Serviço | O202: - | P202: SINAPI | Q202: 74130/5 | R202: DISJUNTOR TERMOMAGNETICO TRIPOLAR PADRAO NEMA (AMERICANO) 60 A 100A 240V, FORNECIMENTO E INSTALACAO | S202: UN | T202: 8 | W202: 0
A203: S | B203: 3 | C203: S | D203: 0 | E203: 1 | F203: 6 | G203: 2 | H203: 0 | I203: 0 | J203: 0 | K203: 0 | M203: Serviço | N203: Serviço | O203: - | P203: AGETOP | Q203: 71201 | R203: ELETRODUTO DE PVC RIGIDO DIAMETRO 3/4" | S203: M | T203: 1400 | W203: 0
A204: S | B204: 3 | C204: S | D204: 0 | E204: 1 | F204: 6 | G204: 2 | H204: 0 | I204: 0 | J204: 0 | K204: 0 | M204: Serviço | N204: Serviço | O204: - | P204: AGETOP | Q204: 71194 | R204: ELETRODUTO PVC FLEXÍVEL - MANGUEIRA CORRUGADA LEVE - DIAM. 25MM | S204: M | T204: 100 | W204: 0
A205: S | B205: 3 | C205: S | D205: 0 | E205: 1 | F205: 6 | G205: 2 | H205: 0 | I205: 0 | J205: 0 | K205: 0 | M205: Serviço | N205: Serviço | O205: - | P205: AGETOP | Q205: 71202 | R205: ELETRODUTO DE PVC RIGIDO DIAMETRO 1" | S205: M | T205: 416 | W205: 0
A206: S | B206: 3 | C206: S | D206: 0 | E206: 1 | F206: 6 | G206: 2 | H206: 0 | I206: 0 | J206: 0 | K206: 0 | M206: Serviço | N206: Serviço | O206: - | P206: AGETOP | Q206: 71203 | R206: ELETRODUTO DE PVC RIGIDO DIAMETRO 1.1/2" | S206: M | T206: 70 | W206: 0
... 298 more rows

Sheet Resumo
B3: UNIDADE ESCOLAR | G3: CÓDIGO INEP
B4: =Orçamento!$O$4 -> CENTRO DE ENSINO EM PERÍODO INTEGRAL PEDRO XAVIER TEIXEIRA | G4: =Orçamento!V4 -> 52033562
B6: OBRA | G6: CIDADE
B7: =Orçamento!$O$7 -> REFORMA | G7: =Orçamento!$V$7 -> GOIÂNIA
B9: ENDEREÇO | G9: CRE
B10: =Orçamento!$R$10 -> RUA 1027 Nº 70 70, SETOR PEDRO LUDOVICO, CEP:74825-040 | G10: =Orçamento!$O$10 -> GOIÂNIA
B12: REFERÊNCIA | D12: DATA | G12: ÁREA TOTAL CONSTRUÍDA (M²)
B13: =CONCATENATE("AGETOP E SINAPI - ",Orçamento!$W$10) -> AGETOP E SINAPI - ONERADA | D13: =Orçamento!$S$7 -> 2020-03-25 | G13: =Orçamento!$S$13 -> 4083.99
A14: FILTRO
B15: RESUMO GERAL DO ORÇAMENTO
A16: ↓ | B16: ITEM | C16: DESCRIÇÃO DOS SERVIÇOS | E16: UNID | F16: QUANT | G16: PREÇO SEM BDI | H16: PREÇO COM BDI | I16: PARTICIP. (%)
A17: =IF(E17>0,"F","") -> F | B17: 1. | C17: =Orçamento!$P484 -> REFORMA | E17: UN | F17: 1 | G17: =IFERROR(Orçamento!S484,"-") -> 0 | H17: =IFERROR(Orçamento!V484,"") -> 0 | I17: =Orçamento!X484 -> 100
A18: =IF(E18>0,"F","") ->  | B18: 2. | C18: =Orçamento!$P485 ->  | G18: =IFERROR(Orçamento!S485,"-") -> 0 | H18: =IFERROR(Orçamento!V485,"") -> 0 | I18: =Orçamento!X485 -> 0
B19: 3. | C19: =Orçamento!$P486 ->  | G19: =IFERROR(Orçamento!S486,"-") -> 0 | H19: =IFERROR(Orçamento!V486,"") -> 0 | I19: =Orçamento!X486 -> 0
B20: 4. | C20: =Orçamento!$P487 ->  | G20: =IFERROR(Orçamento!S487,"-") -> 0 | H20: =IFERROR(Orçamento!V487,"") -> 0 | I20: =Orçamento!X487 -> 0
B21: 5. | C21: =Orçamento!$P488 ->  | G21: =IFERROR(Orçamento!S488,"-") -> 0 | H21: =IFERROR(Orçamento!V488,"") -> 0 | I21: =Orçamento!X488 -> 0
B22: 6. | C22: =Orçamento!$P489 ->  | G22: =IFERROR(Orçamento!S489,"-") -> 0 | H22: =IFERROR(Orçamento!V489,"") -> 0 | I22: =Orçamento!X489 -> 0
B23: 7. | C23: =Orçamento!$P490 ->  | G23: =IFERROR(Orçamento!S490,"-") -> 0 | H23: =IFERROR(Orçamento!V490,"") -> 0 | I23: =Orçamento!X490 -> 0
B24: 8. | C24: =Orçamento!$P491 ->  | G24: =IFERROR(Orçamento!S491,"-") -> 0 | H24: =IFERROR(Orçamento!V491,"") -> 0 | I24: =Orçamento!X491 -> 0
B25: 9. | C25: =Orçamento!$P492 ->  | G25: =IFERROR(Orçamento!S492,"-") -> 0 | H25: =IFERROR(Orçamento!V492,"") -> 0 | I25: =Orçamento!X492 -> 0
B26: 10. | C26: =Orçamento!$P493 ->  | G26: =IFERROR(Orçamento!S493,"-") -> 0 | H26: =IFERROR(Orçamento!V493,"") -> 0 | I26: =Orçamento!X493 -> 0
B27: 11. | C27: =Orçamento!$P494 ->  | G27: =IFERROR(Orçamento!S494,"-") -> 0 | H27: =IFERROR(Orçamento!V494,"") -> 0 | I27: =Orçamento!X494 -> 0
B28: 12. | C28: =Orçamento!$P495 ->  | G28: =IFERROR(Orçamento!S495,"-") -> 0 | H28: =IFERROR(Orçamento!V495,"") -> 0 | I28: =Orçamento!X495 -> 0
B29: 13. | C29: =Orçamento!$P496 ->  | G29: =IFERROR(Orçamento!S496,"-") -> 0 | H29: =IFERROR(Orçamento!V496,"") -> 0 | I29: =Orçamento!X496 -> 0
B30: 14. | C30: =Orçamento!$P497 ->  | G30: =IFERROR(Orçamento!S497,"-") -> 0 | H30: =IFERROR(Orçamento!V497,"") -> 0 | I30: =Orçamento!X497 -> 0
B31: 15. | C31: =Orçamento!$P498 ->  | G31: =IFERROR(Orçamento!S498,"-") -> 0 | H31: =IFERROR(Orçamento!V498,"") -> 0 | I31: =Orçamento!X498 -> 0
B32: 16. | C32: =Orçamento!$P499 ->  | G32: =IFERROR(Orçamento!S499,"-") -> 0 | H32: =IFERROR(Orçamento!V499,"") -> 0 | I32: =Orçamento!X499 -> 0
B33: 17. | C33: =Orçamento!$P500 ->  | G33: =IFERROR(Orçamento!S500,"-") -> 0 | H33: =IFERROR(Orçamento!V500,"") -> 0 | I33: =Orçamento!X500 -> 0
B34: 18. | C34: =Orçamento!$P501 ->  | G34: =IFERROR(Orçamento!S501,"-") -> 0 | H34: =IFERROR(Orçamento!V501,"") -> 0 | I34: =Orçamento!X501 -> 0
B35: 19. | C35: =Orçamento!$P502 ->  | G35: =IFERROR(Orçamento!S502,"-") -> 0 | H35: =IFERROR(Orçamento!V502,"") -> 0 | I35: =Orçamento!X502 -> 0
B36: 20. | C36: =Orçamento!$P503 ->  | G36: =IFERROR(Orçamento!S503,"-") -> 0 | H36: =IFERROR(Orçamento!V503,"") -> 0 | I36: =Orçamento!X503 -> 0
A37: F | B37: TOTAL GERAL DO ORÇAMENTO (R$) | G37: =SUM(G17:G36) -> 0 | H37: =SUM(H17:H36) -> 0 | I37: =SUM(I17:I36) -> 100
A38: F
A39: F

Sheet Somatório
B3: UNIDADE ESCOLAR | E3: CÓDIGO INEP
B4: =Orçamento!$O$4 -> CENTRO DE ENSINO EM PERÍODO INTEGRAL PEDRO XAVIER TEIXEIRA | E4: =Orçamento!V4 -> 52033562
B6: OBRA | E6: CIDADE
B7: =Orçamento!$O$7 -> REFORMA | E7: =Orçamento!$V$7 -> GOIÂNIA
B9: ENDEREÇO | E9: CRE
B10: =Orçamento!$R$10 -> RUA 1027 Nº 70 70, SETOR PEDRO LUDOVICO, CEP:74825-040 | E10: =Orçamento!$O$10 -> GOIÂNIA
B12: REFERÊNCIA | D12: DATA | E12: ÁREA TOTAL CONSTRUÍDA (M²)
B13: =CONCATENATE("AGETOP E SINAPI - ",Orçamento!$W$10) -> AGETOP E SINAPI - ONERADA | D13: =Orçamento!$S$7 -> 2020-03-25 | E13: =Orçamento!$S$13 -> 4083.99
A14: FILTRO
B15: SOMATÓRIO DE SERVIÇOS
A16: ↓ | B16: ITEM | C16: DESCRIÇÃO DOS SERVIÇOS | D16: PREÇO SEM BDI (R$) | E16: PREÇO COM BDI (R$) | F16: PARTIC. ( % )
A17: =IF(D17>0,"F","") ->  | B17: a. | C17: =Orçamento!P450 -> SERVIÇOS PRELIMINARES | D17: =Orçamento!S450 -> 0 | E17: =Orçamento!V450 -> 0 | F17: =Orçamento!X450 -> 0
A18: =IF(D18>0,"F","") ->  | B18: b. | C18: =Orçamento!P451 -> TRANSPORTES | D18: =Orçamento!S451 -> 0 | E18: =Orçamento!V451 -> 0 | F18: =Orçamento!X451 -> 0
B19: c. | C19: =Orçamento!P452 -> SERVIÇO EM TERRA | D19: =Orçamento!S452 -> 0 | E19: =Orçamento!V452 -> 0 | F19: =Orçamento!X452 -> 0
B20: d. | C20: =Orçamento!P453 -> FUNDAÇÕES E SONDAGENS | D20: =Orçamento!S453 -> 0 | E20: =Orçamento!V453 -> 0 | F20: =Orçamento!X453 -> 0
B21: e. | C21: =Orçamento!P454 -> ESTRUTURA | D21: =Orçamento!S454 -> 0 | E21: =Orçamento!V454 -> 0 | F21: =Orçamento!X454 -> 0
B22: f. | C22: =Orçamento!P455 -> INSTALAÇÕES ELÉTRICAS | D22: =Orçamento!S455 -> 0 | E22: =Orçamento!V455 -> 0 | F22: =Orçamento!X455 -> 0
B23: g. | C23: =Orçamento!P456 -> INSTALAÇÕES HIDROSSANITÁRIAS | D23: =Orçamento!S456 -> 0 | E23: =Orçamento!V456 -> 0 | F23: =Orçamento!X456 -> 0
B24: h. | C24: =Orçamento!P457 -> INSTALAÇÕES ESPECIAIS | D24: =Orçamento!S457 -> 0 | E24: =Orçamento!V457 -> 0 | F24: =Orçamento!X457 -> 0
B25: i. | C25: =Orçamento!P458 -> ALVENARIAS E DIVISÓRIAS | D25: =Orçamento!S458 -> 0 | E25: =Orçamento!V458 -> 0 | F25: =Orçamento!X458 -> 0
B26: j. | C26: =Orçamento!P459 -> ALVENARIA AUTO-PORTANTE | D26: =Orçamento!S459 -> 0 | E26: =Orçamento!V459 -> 0 | F26: =Orçamento!X459 -> 0
B27: k. | C27: =Orçamento!P460 -> IMPERMEABILIZAÇÃO | D27: =Orçamento!S460 -> 0 | E27: =Orçamento!V460 -> 0 | F27: =Orçamento!X460 -> 0
B28: l. | C28: =Orçamento!P461 -> ISOLAMENTO TÉRMICO E ACÚSTICO | D28: =Orçamento!S461 -> 0 | E28: =Orçamento!V461 -> 0 | F28: =Orçamento!X461 -> 0
B29: m. | C29: =Orçamento!P462 -> ESTRUTURA DE MADEIRA | D29: =Orçamento!S462 -> 0 | E29: =Orçamento!V462 -> 0 | F29: =Orçamento!X462 -> 0
B30: n. | C30: =Orçamento!P463 -> ESTRUTURAS METÁLICAS | D30: =Orçamento!S463 -> 0 | E30: =Orçamento!V463 -> 0 | F30: =Orçamento!X463 -> 0
B31: o. | C31: =Orçamento!P464 -> COBERTURAS | D31: =Orçamento!S464 -> 0 | E31: =Orçamento!V464 -> 0 | F31: =Orçamento!X464 -> 0
B32: p. | C32: =Orçamento!P465 -> ESQUADRIAS DE MADEIRA | D32: =Orçamento!S465 -> 0 | E32: =Orçamento!V465 -> 0 | F32: =Orçamento!X465 -> 0
B33: q. | C33: =Orçamento!P466 -> ESQUADRIAS METÁLICAS | D33: =Orçamento!S466 -> 0 | E33: =Orçamento!V466 -> 0 | F33: =Orçamento!X466 -> 0
B34: r. | C34: =Orçamento!P467 -> VIDROS | D34: =Orçamento!S467 -> 0 | E34: =Orçamento!V467 -> 0 | F34: =Orçamento!X467 -> 0
B35: s. | C35: =Orçamento!P468 -> REVESTIMENTO DE PAREDE | D35: =Orçamento!S468 -> 0 | E35: =Orçamento!V468 -> 0 | F35: =Orçamento!X468 -> 0
B36: t. | C36: =Orçamento!P469 -> FORROS | D36: =Orçamento!S469 -> 0 | E36: =Orçamento!V469 -> 0 | F36: =Orçamento!X469 -> 0
B37: u. | C37: =Orçamento!P470 -> REVESTIMENTO DE PISO | D37: =Orçamento!S470 -> 0 | E37: =Orçamento!V470 -> 0 | F37: =Orçamento!X470 -> 0
B38: v. | C38: =Orçamento!P471 -> FERRAGENS | D38: =Orçamento!S471 -> 0 | E38: =Orçamento!V471 -> 0 | F38: =Orçamento!X471 -> 0
B39: w. | C39: =Orçamento!P472 -> MARCENARIA | D39: =Orçamento!S472 -> 0 | E39: =Orçamento!V472 -> 0 | F39: =Orçamento!X472 -> 0
B40: x. | C40: =Orçamento!P473 -> ADMINISTRAÇÃO | D40: =Orçamento!S473 -> 0 | E40: =Orçamento!V473 -> 0 | F40: =Orçamento!X473 -> 0
B41: y. | C41: =Orçamento!P474 -> PINTURA | D41: =Orçamento!S474 -> 0 | E41: =Orçamento!V474 -> 0 | F41: =Orçamento!X474 -> 0
B42: z. | C42: =Orçamento!P475 -> DIVERSOS | D42: =Orçamento!S475 -> 0 | E42: =Orçamento!V475 -> 0 | F42: =Orçamento!X475 -> 0
A43: F | B43: TOTAL GERAL DO ORÇAMENTO | D43: =SUM(D17:D42) -> 0 | E43: =SUM(E17:E42) -> 0 | F43: =SUM(F17:F42) -> 0
B45: (*) Para itens da AGETOP, os vidros não estão inclusos nas esquadrias e já foram considerados os custos de contramarco para as esquadrias de alumínio;

Sheet Cronog_120_Dias
B3: UNIDADE ESCOLAR | I3: PRAZO
B4: =Orçamento!$O$4 -> CENTRO DE ENSINO EM PERÍODO INTEGRAL PEDRO XAVIER TEIXEIRA | I4: 120 DIAS CORRIDOS
B6: OBRA | I6: DATA
B7: =Orçamento!$O$7 -> REFORMA | I7: =Orçamento!$S$7 -> 2020-03-25
B9: LOCAL | I9: ÁREA TOTAL CONSTRUÍDA (M²)
A10: FILTRO | B10: =Orçamento!$V$7 -> GOIÂNIA | I10: =Orçamento!$S$13 -> 4083.99
B12: CRONOGRAMA - FÍSICO FINANCEIRO
A13: ↓ | B13: CUSTO TOTAL: | C13: =D93 -> 0 | D13: VALOR | E13: Dias: | F13: 30 | J13: 60 | N13: 90 | R13: 120 | V13: TOTAL
B14: DESCRIÇÃO DOS SERVIÇOS | E14: % | F14: 1ª PARCELA | J14: 2ª PARCELA | N14: 3ª PARCELA | R14: 4ª PARCELA
A15: =IF(D15>0,"F","") ->  | B15: SERVIÇOS PRELIMINARES | D15: =Orçamento!V450 -> 0 | E15: =Orçamento!X450 -> 0 | F15: =ROUND(F17*$D$15,2) -> 0 | J15: =ROUND(J17*$D$15,2) -> 0 | N15: =ROUND(N17*$D$15,2) -> 0 | R15: =ROUND(R17*$D$15,2) -> 0 | V15: =SUM(F15:U15) -> 0 | W15: =IF(V15=D15,"OK","ERRO") -> OK
A16: =IF(A15="F",A15,"") -> 
A17: =IF(A16="F",A16,"") ->  | F17: 0.27 | J17: =F17 -> 0.27 | N17: =J17 -> 0.27 | R17: =1-SUM(F17:Q17) -> 0.19 | V17: =IFERROR(E15/100,"") -> 0 | W17: =IF(SUM(F17:U17)=100%,"OK","ERRO") -> OK
A18: =IF(D18>0,"F","") ->  | B18: TRANSPORTES | D18: =Orçamento!V451 -> 0 | E18: =Orçamento!X451 -> 0 | F18: =ROUND(F20*$D$18,2) -> 0 | J18: =ROUND(J20*$D$18,2) -> 0 | N18: =ROUND(N20*$D$18,2) -> 0 | R18: =ROUND(R20*$D$18,2) -> 0 | V18: =SUM(F18:U18) -> 0 | W18: =IF(V18=D18,"OK","ERRO") -> OK
A19: =IF(A18="F",A18,"") -> 
A20: =IF(A19="F",A19,"") ->  | F20: 0.26 | J20: =F20 -> 0.26 | N20: =J20 -> 0.26 | R20: =1-SUM(F20:Q20) -> 0.22 | V20: =IFERROR(E18/100,"") -> 0 | W20: =IF(SUM(F20:U20)=100%,"OK","ERRO") -> OK
A21: =IF(D21>0,"F","") ->  | B21: SERVIÇO EM TERRA | D21: =Orçamento!V452 -> 0 | E21: =Orçamento!X452 -> 0 | F21: =ROUND(F23*$D$21,2) -> 0 | J21: =ROUND(J23*$D$21,2) -> 0 | N21: =ROUND(N23*$D$21,2) -> 0 | R21: =ROUND(R23*$D$21,2) -> 0 | V21: =SUM(F21:U21) -> 0 | W21: =IF(V21=D21,"OK","ERRO") -> OK
A22: =IF(A21="F",A21,"") -> 
A23: =IF(A22="F",A22,"") ->  | F23: 0.29 | J23: 0.3 | N23: =1-SUM(F23:M23) -> 0.41 | R23: 0 | V23: =IFERROR(E21/100,"") -> 0 | W23: =IF(SUM(F23:U23)=100%,"OK","ERRO") -> OK
A24: =IF(D24>0,"F","") ->  | B24: FUNDAÇÕES E SONDAGENS | D24: =Orçamento!V453 -> 0 | E24: =Orçamento!X453 -> 0 | F24: =ROUND(F26*$D$24,2) -> 0 | J24: =ROUND(J26*$D$24,2) -> 0 | N24: =ROUND(N26*$D$24,2) -> 0 | R24: =ROUND(R26*$D$24,2) -> 0 | V24: =SUM(F24:U24) -> 0 | W24: =IF(V24=D24,"OK","ERRO") -> OK
A25: =IF(A24="F",A24,"") -> 
A26: =IF(A25="F",A25,"") ->  | F26: 0.35 | J26: =F26 -> 0.35 | N26: =1-SUM(F26:M26) -> 0.3 | V26: =IFERROR(E24/100,"") -> 0 | W26: =IF(SUM(F26:U26)=100%,"OK","ERRO") -> OK
A27: =IF(D27>0,"F","") ->  | B27: ESTRUTURA | D27: =Orçamento!V454 -> 0 | E27: =Orçamento!X454 -> 0 | F27: =ROUND(F29*$D$27,2) -> 0 | J27: =ROUND(J29*$D$27,2) -> 0 | N27: =ROUND(N29*$D$27,2) -> 0 | R27: =ROUND(R29*$D$27,2) -> 0 | V27: =SUM(F27:U27) -> 0 | W27: =IF(V27=D27,"OK","ERRO") -> OK
A28: =IF(A27="F",A27,"") -> 
A29: =IF(A28="F",A28,"") ->  | F29: 0.35 | J29: 0.35 | N29: 0.1 | R29: =1-SUM(F29:Q29) -> 0.2 | V29: =IFERROR(E27/100,"") -> 0 | W29: =IF(SUM(F29:U29)=100%,"OK","ERRO") -> OK
A30: =IF(D30>0,"F","") ->  | B30: INST.ELET/TELEFÔNICA/CABEAMENTO ESTRUTURADO | D30: =Orçamento!V455 -> 0 | E30: =Orçamento!X455 -> 0 | F30: =ROUND(F32*$D$30,2) -> 0 | J30: =ROUND(J32*$D$30,2) -> 0 | N30: =ROUND(N32*$D$30,2) -> 0 | R30: =ROUND(R32*$D$30,2) -> 0 | V30: =SUM(F30:U30) -> 0 | W30: =IF(V30=D30,"OK","ERRO") -> OK
A31: =IF(A30="F",A30,"") -> 
A32: =IF(A31="F",A31,"") ->  | F32: 0.22 | J32: =F32+0.15 -> 0.37 | N32: =J32-0.05 -> 0.32 | R32: =1-SUM(F32:Q32) -> 0.09 | V32: =IFERROR(E30/100,"") -> 0 | W32: =IF(SUM(F32:U32)=100%,"OK","ERRO") -> OK
A33: =IF(D33>0,"F","") ->  | B33: INSTALAÇÕES HIDROSSANITÁRIAS | D33: =Orçamento!V456 -> 0 | E33: =Orçamento!X456 -> 0 | F33: =ROUND(F35*$D$33,2) -> 0 | J33: =ROUND(J35*$D$33,2) -> 0 | N33: =ROUND(N35*$D$33,2) -> 0 | R33: =ROUND(R35*$D$33,2) -> 0 | V33: =SUM(F33:U33) -> 0 | W33: =IF(V33=D33,"OK","ERRO") -> OK
A34: =IF(A33="F",A33,"") -> 
A35: =IF(A34="F",A34,"") ->  | F35: 0.26 | J35: =F35 -> 0.26 | N35: =J35 -> 0.26 | R35: =1-SUM(F35:Q35) -> 0.22 | V35: =IFERROR(E33/100,"") -> 0 | W35: =IF(SUM(F35:U35)=100%,"OK","ERRO") -> OK
A36: =IF(D36>0,"F","") ->  | B36: INSTALAÇÕES ESPECIAIS | D36: =Orçamento!V457 -> 0 | E36: =Orçamento!X457 -> 0 | F36: =ROUND(F38*$D$36,2) -> 0 | J36: =ROUND(J38*$D$36,2) -> 0 | N36: =ROUND(N38*$D$36,2) -> 0 | R36: =ROUND(R38*$D$36,2) -> 0 | V36: =SUM(F36:U36) -> 0 | W36: =IF(V36=D36,"OK","ERRO") -> OK
A37: =IF(A36="F",A36,"") -> 
A38: =IF(A37="F",A37,"") ->  | F38: 0 | J38: 1 | N38: 0 | R38: 0 | V38: =IFERROR(E36/100,"") -> 0 | W38: =IF(SUM(F38:U38)=100%,"OK","ERRO") -> OK
A39: =IF(D39>0,"F","") ->  | B39: ALVENARIA E DIVISÓRIAS | D39: =Orçamento!V458 -> 0 | E39: =Orçamento!X458 -> 0 | F39: =ROUND(F41*$D$39,2) -> 0 | J39: =ROUND(J41*$D$39,2) -> 0 | N39: =ROUND(N41*$D$39,2) -> 0 | R39: =ROUND(R41*$D$39,2) -> 0 | V39: =SUM(F39:U39) -> 0 | W39: =IF(V39=D39,"OK","ERRO") -> OK
A40: =IF(A39="F",A39,"") -> 
A41: =IF(A40="F",A40,"") ->  | F41: 0.24 | J41: =F41 -> 0.24 | N41: 0.24 | R41: =1-SUM(F41:Q41) -> 0.28 | V41: =IFERROR(E39/100,"") -> 0 | W41: =IF(SUM(F41:U41)=100%,"OK","ERRO") -> OK
A42: =IF(D42>0,"F","") ->  | B42: ALVENARIA AUTO-PORTANTE | D42: =Orçamento!V459 -> 0 | E42: =Orçamento!X459 -> 0 | F42: 0 | J42: 0 | N42: 0 | R42: 0 | V42: =SUM(F42:M42) -> 0
A43: =IF(A42="F",A42,"") -> 
A44: =IF(A43="F",A43,"") ->  | F44: 1 | J44: =1-F44 -> 0 | N44: 1 | R44: 1 | V44: =IFERROR(E42/100,"") -> 0
A45: =IF(D45>0,"F","") ->  | B45: IMPERMEABILIZAÇÃO | D45: =Orçamento!V460 -> 0 | E45: =Orçamento!X460 -> 0 | F45: =ROUND(F47*$D$45,2) -> 0 | J45: =ROUND(J47*$D$45,2) -> 0 | N45: =ROUND(N47*$D$45,2) -> 0 | R45: =ROUND(R47*$D$45,2) -> 0 | V45: =SUM(F45:U45) -> 0 | W45: =IF(V45=D45,"OK","ERRO") -> OK
A46: =IF(A45="F",A45,"") -> 
A47: =IF(A46="F",A46,"") ->  | F47: 0.251 | J47: =F47 -> 0.251 | N47: =1-SUM(F47:M47) -> 0.498 | R47: 0 | V47: =IFERROR(E45/100,"") -> 0 | W47: =IF(SUM(F47:U47)=100%,"OK","ERRO") -> OK
A48: =IF(D48>0,"F","") ->  | B48: ISOLAMENTO TÉRMICO E ACÚSTICO | D48: =Orçamento!V461 -> 0 | E48: =Orçamento!X461 -> 0 | F48: =ROUND(F50*$D$48,2) -> 0 | J48: =ROUND(J50*$D$48,2) -> 0 | N48: =ROUND(N50*$D$48,2) -> 0 | R48: =ROUND(R50*$D$48,2) -> 0 | V48: =SUM(F48:M48) -> 0
A49: =IF(A48="F",A48,"") -> 
A50: =IF(A49="F",A49,"") ->  | F50: 0.5 | J50: =1-F50 -> 0.5 | N50: 0.35 | R50: 0.35 | V50: =IFERROR(E48/100,"") -> 0
A51: =IF(D51>0,"F","") ->  | B51: ESTRUTURA DE MADEIRA | D51: =Orçamento!V462 -> 0 | E51: =Orçamento!X462 -> 0 | F51: =ROUND(F53*$D$51,2) -> 0 | J51: =ROUND(J53*$D$51,2) -> 0 | N51: =ROUND(N53*$D$51,2) -> 0 | R51: =ROUND(R53*$D$51,2) -> 0 | V51: =SUM(F51:U51) -> 0 | W51: =IF(V51=D51,"OK","ERRO") -> OK
A52: =IF(A51="F",A51,"") -> 
A53: =IF(A52="F",A52,"") ->  | F53: 0.24 | J53: =F53 -> 0.24 | N53: =1-SUM(F53:M53) -> 0.52 | R53: 0 | V53: =IFERROR(E51/100,"") -> 0 | W53: =IF(SUM(F53:U53)=100%,"OK","ERRO") -> OK
A54: =IF(D54>0,"F","") ->  | B54: ESTRUTURA METÁLICA | D54: =Orçamento!V463 -> 0 | E54: =Orçamento!X463 -> 0 | F54: =ROUND(F56*$D$54,2) -> 0 | J54: =ROUND(J56*$D$54,2) -> 0 | N54: =ROUND(N56*$D$54,2) -> 0 | R54: =ROUND(R56*$D$54,2) -> 0 | V54: =SUM(F54:U54) -> 0 | W54: =IF(V54=D54,"OK","ERRO") -> OK
A55: =IF(A54="F",A54,"") -> 
A56: =IF(A55="F",A55,"") ->  | F56: 0.352 | J56: =F56 -> 0.352 | N56: =1-SUM(F56:M56) -> 0.296 | R56: 0 | V56: =IFERROR(E54/100,"") -> 0 | W56: =IF(SUM(F56:U56)=100%,"OK","ERRO") -> OK
A57: =IF(D57>0,"F","") ->  | B57: COBERTURAS | D57: =Orçamento!V464 -> 0 | E57: =Orçamento!X464 -> 0 | F57: =ROUND(F59*$D$57,2) -> 0 | J57: =ROUND(J59*$D$57,2) -> 0 | N57: =ROUND(N59*$D$57,2) -> 0 | R57: =ROUND(R59*$D$57,2) -> 0 | V57: =SUM(F57:U57) -> 0 | W57: =IF(V57=D57,"OK","ERRO") -> OK
A58: =IF(A57="F",A57,"") -> 
A59: =IF(A58="F",A58,"") ->  | F59: 0 | J59: 0.49 | N59: =1-J59 -> 0.51 | R59: 0 | V59: =IFERROR(E57/100,"") -> 0 | W59: =IF(SUM(F59:U59)=100%,"OK","ERRO") -> OK
A60: =IF(D60>0,"F","") ->  | B60: ESQUADRIAS DE MADEIRA | D60: =Orçamento!V465 -> 0 | E60: =Orçamento!X465 -> 0 | F60: =ROUND(F62*$D$60,2) -> 0 | J60: =ROUND(J62*$D$60,2) -> 0 | N60: =ROUND(N62*$D$60,2) -> 0 | R60: =ROUND(R62*$D$60,2) -> 0 | V60: =SUM(F60:M60) -> 0
A61: =IF(A60="F",A60,"") -> 
A62: =IF(A61="F",A61,"") ->  | F62: 0.54 | J62: =1-F62 -> 0.46 | N62: 0.32 | R62: 0.32 | V62: =IFERROR(E60/100,"") -> 0
A63: =IF(D63>0,"F","") ->  | B63: ESQUADRIAS METÁLICAS | D63: =Orçamento!V466 -> 0 | E63: =Orçamento!X466 -> 0 | F63: =ROUND(F65*$D$63,2) -> 0 | J63: =ROUND(J65*$D$63,2) -> 0 | N63: =ROUND(N65*$D$63,2) -> 0 | R63: =ROUND(R65*$D$63,2) -> 0 | V63: =SUM(F63:U63) -> 0 | W63: =IF(V63=D63,"OK","ERRO") -> OK
A64: =IF(A63="F",A63,"") -> 
A65: =IF(A64="F",A64,"") ->  | F65: 0 | J65: 0.35 | N65: =J65-0.05 -> 0.3 | R65: =1-SUM(F65:Q65) -> 0.35 | V65: =IFERROR(E63/100,"") -> 0 | W65: =IF(SUM(F65:U65)=100%,"OK","ERRO") -> OK
A66: =IF(D66>0,"F","") ->  | B66: VIDROS | D66: =Orçamento!V467 -> 0 | E66: =Orçamento!X467 -> 0 | F66: =ROUND(F68*$D$66,2) -> 0 | J66: =ROUND(J68*$D$66,2) -> 0 | N66: =ROUND(N68*$D$66,2) -> 0 | R66: =ROUND(R68*$D$66,2) -> 0 | V66: =SUM(F66:U66) -> 0 | W66: =IF(V66=D66,"OK","ERRO") -> OK
A67: =IF(A66="F",A66,"") -> 
A68: =IF(A67="F",A67,"") ->  | F68: 0 | J68: 0 | N68: 0 | R68: 1 | V68: =IFERROR(E66/100,"") -> 0 | W68: =IF(SUM(F68:U68)=100%,"OK","ERRO") -> OK
A69: =IF(D69>0,"F","") ->  | B69: REVESTIMENTO DE PAREDE | D69: =Orçamento!V468 -> 0 | E69: =Orçamento!X468 -> 0 | F69: =ROUND(F71*$D$69,2) -> 0 | J69: =ROUND(J71*$D$69,2) -> 0 | N69: =ROUND(N71*$D$69,2) -> 0 | R69: =ROUND(R71*$D$69,2) -> 0 | V69: =SUM(F69:U69) -> 0 | W69: =IF(V69=D69,"OK","ERRO") -> OK
A70: =IF(A69="F",A69,"") -> 
A71: =IF(A70="F",A70,"") ->  | F71: 0.181 | J71: =F71+0.05 -> 0.231 | N71: =J71+0.05 -> 0.281 | R71: =1-SUM(F71:Q71) -> 0.307 | V71: =IFERROR(E69/100,"") -> 0 | W71: =IF(SUM(F71:U71)=100%,"OK","ERRO") -> OK
A72: =IF(D72>0,"F","") ->  | B72: FORROS | D72: =Orçamento!V469 -> 0 | E72: =Orçamento!X469 -> 0 | F72: =ROUND(F74*$D$72,2) -> 0 | J72: =ROUND(J74*$D$72,2) -> 0 | N72: =ROUND(N74*$D$72,2) -> 0 | R72: =ROUND(R74*$D$72,2) -> 0 | V72: =SUM(F72:U72) -> 0 | W72: =IF(V72=D72,"OK","ERRO") -> OK
A73: =IF(A72="F",A72,"") -> 
A74: =IF(A73="F",A73,"") ->  | F74: 0.22 | J74: =F74+0.15 -> 0.37 | N74: =J74-0.05 -> 0.32 | R74: =1-SUM(F74:Q74) -> 0.09 | V74: =IFERROR(E72/100,"") -> 0 | W74: =IF(SUM(F74:U74)=100%,"OK","ERRO") -> OK
A75: =IF(D75>0,"F","") ->  | B75: REVESTIMENTO DE PISO | D75: =Orçamento!V470 -> 0 | E75: =Orçamento!X470 -> 0 | F75: =ROUND(F77*$D$75,2) -> 0 | J75: =ROUND(J77*$D$75,2) -> 0 | N75: =ROUND(N77*$D$75,2) -> 0 | R75: =ROUND(R77*$D$75,2) -> 0 | V75: =SUM(F75:U75) -> 0 | W75: =IF(V75=D75,"OK","ERRO") -> OK
A76: =IF(A75="F",A75,"") -> 
A77: =IF(A76="F",A76,"") ->  | F77: 0.231 | J77: =F77 -> 0.231 | N77: =J77-0.1 -> 0.131 | R77: =1-SUM(F77:Q77) -> 0.407 | V77: =IFERROR(E75/100,"") -> 0 | W77: =IF(SUM(F77:U77)=100%,"OK","ERRO") -> OK
A78: =IF(D78>0,"F","") ->  | B78: FERRAGENS | D78: =Orçamento!V471 -> 0 | E78: =Orçamento!X471 -> 0 | F78: =ROUND(F80*$D$78,2) -> 0 | J78: =ROUND(J80*$D$78,2) -> 0 | N78: =ROUND(N80*$D$78,2) -> 0 | R78: =ROUND(R80*$D$78,2) -> 0 | V78: =SUM(F78:U78) -> 0 | W78: =IF(V78=D78,"OK","ERRO") -> OK
A79: =IF(A78="F",A78,"") -> 
A80: =IF(A79="F",A79,"") ->  | F80: 0 | J80: 0 | N80: 0 | R80: 1 | V80: =IFERROR(E78/100,"") -> 0 | W80: =IF(SUM(F80:U80)=100%,"OK","ERRO") -> OK
A81: =IF(D81>0,"F","") ->  | B81: MARCENARIA | D81: =Orçamento!V472 -> 0 | E81: =Orçamento!X472 -> 0 | F81: =ROUND(F83*$D$81,2) -> 0 | J81: =ROUND(J83*$D$81,2) -> 0 | N81: =ROUND(N83*$D$81,2) -> 0 | R81: =ROUND(R83*$D$81,2) -> 0 | V81: =SUM(F81:M81) -> 0
A82: =IF(A81="F",A81,"") -> 
A83: =IF(A82="F",A82,"") ->  | F83: 0.4 | J83: =1-F83 -> 0.6 | N83: =1-J83 -> 0.4 | R83: =1-N83 -> 0.6 | V83: =IFERROR(E81/100,"") -> 0
A84: =IF(D84>0,"F","") ->  | B84: ADMINISTRAÇÃO - MENSALISTAS | D84: =Orçamento!V473 -> 0 | E84: =Orçamento!X473 -> 0 | F84: =ROUND(F86*$D$84,2) -> 0 | J84: =ROUND(J86*$D$84,2) -> 0 | N84: =ROUND(N86*$D$84,2) -> 0 | R84: =ROUND(R86*$D$84,2) -> 0 | V84: =SUM(F84:U84) -> 0 | W84: =IF(V84=D84,"OK","ERRO") -> OK
A85: =IF(A84="F",A84,"") -> 
A86: =IF(A85="F",A85,"") ->  | F86: 0.49 | J86: =1-F86 -> 0.51 | V86: =IFERROR(E84/100,"") -> 0 | W86: =IF(SUM(F86:U86)=100%,"OK","ERRO") -> OK
A87: =IF(D87>0,"F","") ->  | B87: PINTURA | D87: =Orçamento!V474 -> 0 | E87: =Orçamento!X474 -> 0 | F87: =ROUND(F89*$D$87,2) -> 0 | J87: =ROUND(J89*$D$87,2) -> 0 | N87: =ROUND(N89*$D$87,2) -> 0 | R87: =ROUND(R89*$D$87,2) -> 0 | V87: =SUM(F87:U87) -> 0 | W87: =IF(V87=D87,"OK","ERRO") -> OK
A88: =IF(A87="F",A87,"") -> 
A89: =IF(A88="F",A88,"") ->  | F89: 0 | J89: 0 | N89: 0.4 | R89: 0.6 | V89: =IFERROR(E87/100,"") -> 0 | W89: =IF(SUM(F89:U89)=100%,"OK","ERRO") -> OK
A90: =IF(D90>0,"F","") ->  | B90: DIVERSOS | D90: =Orçamento!V475 -> 0 | E90: =Orçamento!X475 -> 0 | F90: =ROUND(F92*$D$90,2) -> 0 | J90: =ROUND(J92*$D$90,2) -> 0 | N90: =ROUND(N92*$D$90,2) -> 0 | R90: =ROUND(R92*$D$90,2) -> 0 | V90: =SUM(F90:U90) -> 0 | W90: =IF(V90=D90,"OK","ERRO") -> OK
A91: =IF(A90="F",A90,"") -> 
A92: =IF(A91="F",A91,"") ->  | F92: 0.2613 | J92: =F92+0.03 -> 0.2913 | N92: =J92 -> 0.2913 | R92: =1-SUM(F91:Q92) -> 0.1561 | V92: =IFERROR(E90/100,"") -> 0 | W92: =IF(SUM(F92:U92)=100%,"OK","ERRO") -> OK
A93: F | B93: CUSTO DO ORÇAMENTO | D93: =SUM(D15:D92) -> 0 | E93: =SUM(E15:E92) -> 0 | F93: =F15+F18+F21+F24+F27+F30+F33+F36+F39+F42+F45+F48+F51+F54+F57+F60+F63+F66+F69+F72+F75+F78+F81+F84+F87+F90 -> 0 | J93: =J15+J18+J21+J24+J27+J30+J33+J36+J39+J42+J45+J48+J51+J54+J57+J60+J63+J66+J69+J72+J75+J78+J81+J84+J87+J90 -> 0 | N93: =N15+N18+N21+N24+N27+N30+N33+N36+N39+N42+N45+N48+N51+N54+N57+N60+N63+N66+N69+N72+N75+N78+N81+N84+N87+N90 -> 0 | R93: =R15+R18+R21+R24+R27+R30+R33+R36+R39+R42+R45+R48+R51+R54+R57+R60+R63+R66+R69+R72+R75+R78+R81+R84+R87+R90 -> 0 | V93: =V15+V18+V21+V24+V27+V30+V33+V36+V39+V42+V45+V48+V51+V54+V57+V60+V63+V66+V69+V72+V75+V78+V81+V84+V87+V90 -> 0
A94: F | B94: PERCENTUAIS: | F94: =IFERROR(F93/$D$93,"") ->  | J94: =IFERROR(J93/$D$93,"") ->  | N94: =IFERROR(N93/$D$93,"") ->  | R94: =IFERROR(R93/$D$93,"") ->  | V94: =SUM(F94:U94) -> 0
A95: F | B95: TOTAIS ACUMULADOS: | F95: =F93 -> 0 | J95: =J93+F95 -> 0 | N95: =N93+J95 -> 0 | R95: =R93+N95 -> 0
A96: F | B96: PERCENTUAIS ACUMULADOS: | F96: =F94 ->  | J96: =F96+J94 ->  | N96: =J96+N94 ->  | R96: =N96+R94 -> 
A97: F
A98: F | B98: OBSERVAÇÕES:
A99: F | B99: Os pagamentos somente poderão ser efetuados mediante medição e atesto pelos técnicos da Secretaria da Educação.

Sheet Composição BDI
A3: UNIDADE ESCOLAR
A4: =Orçamento!$O$4 -> CENTRO DE ENSINO EM PERÍODO INTEGRAL PEDRO XAVIER TEIXEIRA
A6: OBRA
A7: =Orçamento!$O$7 -> REFORMA
A9: ENDEREÇO
A10: =Orçamento!$R$10 -> RUA 1027 Nº 70 70, SETOR PEDRO LUDOVICO, CEP:74825-040
A12: CIDADE
A13: =Orçamento!$V$7 -> GOIÂNIA
A15: CRE
A16: =Orçamento!$O$10 -> GOIÂNIA
A18: DETALHAMENTO DA COMPOSIÇÃO DE BDI
A19: COMPOSIÇÃO BDI PARA OBRAS CIVIS | F19: BDI CONSTRUÇÃO E REFORMA
A20: DESCRIÇÃO | B20: COEF. | C20: TAXA % (a.m) | D20: % no preço de venda | F20: Situação | G20: 1º Quartil | H20: Médio | I20: 3º Quartil
A21: 1) COFINS | B21: 1 | C21: 0.03 | D21: =C21 -> 0.03 | F21: =IF(OR(C21<G21,C21>I21),"FORA DO INTERVALO","OK") -> OK | G21: 0.03 | H21: 0.03 | I21: 0.03
A22: 2) PIS | B22: 1 | C22: 0.0065 | D22: =C22 -> 0.0065 | F22: =IF(OR(C22<G22,C22>I22),"FORA DO INTERVALO","OK") -> OK | G22: 0.0065 | H22: 0.0065 | I22: 0.0065
A23: 3) ISSQN | B23: 1 | C23: 0.03 | D23: =C23*B23 -> 0.03 | F23: OK | G23: 0.02 | H23: 0.035 | I23: 0.05
A24: 4) CPRB | B24: 1 | C24: 0 | D24: =C24 -> 0 | F24: FORA DO INTERVALO | G24: 0.045 | H24: 0.045 | I24: 0.045
A25: 5) Administração Central | B25: 1 | C25: 0.04 | D25: 0.04 | F25: OK | G25: 0.03 | H25: 0.04 | I25: 0.055
A26: 6) Despesas Financeiras | B26: 1 | C26: 0.0056 | D26: 0.0056 | F26: FORA DO INTERVALO | G26: 0.0059 | H26: 0.0123 | I26: 0.0139
A27: 7) Seguros + Garantias | B27: 1 | C27: 0.0012 | D27: 0.0012 | F27: FORA DO INTERVALO | G27: 0.008 | H27: 0.008 | I27: 0.01
A28: 8) Risco | B28: 1 | C28: 0.0097 | D28: 0.0097 | F28: OK | G28: 0.0097 | H28: 0.0127 | I28: 0.0127
A29: 9) Lucro | B29: 1 | C29: 0.063 | D29: 0.063 | F29: OK | G29: 0.0616 | H29: 0.074 | I29: 0.0896
A30: BDI - FINAL | D30: =(((1+D25+D27+D28)*(1+D26)*(1+D29))/(1-(D21+D22+D23+D24))-1) -> 0.2033877852 | F30: =IF(OR(D30<G30,D30>I30),"FORA DO INTERVALO","OK") -> FORA DO INTERVALO | G30: 0.2034 | H30: 0.2212 | I30: 0.25
A32: Notas:
A33: (1) e (2) Alíquota definida por lei.
A34: (3) Alíquota e base de cálculo definidas pela legislação municipal.
A35: (4) Alíquota definida pelas leis 12.546/11, 12844/13 e 13.161/15 (CPRB – contribuição previdenciária sobre a receita bruta).
A36: (5) Valores definidos a partir dos limites no Acórdão nº 2.622/2013 - TCU – Plenário. Valores entre o 1º e 3º quartis.
A37: (6) Valor calculado pela expressão matemática do acórdão 2.369/2011 – TCU – Plenário e disponibilizado pela AGETOP em dezembro de 2018. (Foi utilizado para o cálculo a média da Taxa SELIC no período de 11/2017 a 10/2018)
A39: (7) Valores definidos pela AGETOP a partir dos limites no Acórdão nº 2.622/2013 - TCU – Plenário. Valores médios. Observação da AGETOP: (Seguros contra erros de execução, incêndio e explosão, danos da natureza (vendaval, destelhamento, alagamento, inundação, desmoronamento, geadas etc.), emprego de material defeituoso ou inadequado, roubo e/ou furto qualificado, quebra de equipamentos, desmoronamento de estrutura, nas modalidades de Obras Civis em Construção (OCC); Instalação e Montagem (IM); e Obras Civis em Construção e Instalação e Montagem (OCC/IM). Bem como coberturas adicionais para ampliação dessas coberturas básicas, como: cobertura de responsabilidade civil geral, cobertura de responsabilidade civil cruzada, cobertura de despesas extraordinárias, cobertura de tumultos, cobertura de desentulho do local, cobertura de riscos do fabricante, dentre outras, incluindo o seguro de vida em grupo regido pela convenção coletiva dos trabalhadores na indústria da construção civil). A partir de 24/02/2015 por intermédio da Portaria 449/2015 a Presidência da AGETOP, na pessoa do Senhor Jayme Eduardo Rincon, determinou a exclusão dos valores referentes aos Seguros de Risco de Engenharia e Responsabilidade Civil do Profissional na composição do cálculo do B.D.I..
A40: (8) Valores definidos a partir dos limites no Acórdão nº 2.622/2013 - TCU – Plenário. Valores entre 1º e 3° quartis.
A41: (9) Valores definidos a partir dos limites definidos no Acórdão nº 2.622/2013 - TCU – Plenário. Valores adotados e praticados no mercado ( “ ex ante ” ) ou aqueles entre os 1º e 3º quartis.
A43: (*) A fórmula para estipulação da taxa de BDI estimado adotado é a mesma que foi aplicada para a obtenção das tabelas contidas no Acórdão n. 2.622/2013 – TCUPlenário
A45: Obs.: Para obras com valores superiores a R$ 20.000.000,00 sugere-se recalcular o BDI, dimensionando as taxas de administração central e lucro para patamares inferiores ao estipulado acima.

Sheet Relatório CENTRAL
B3: UNIDADE ESCOLAR | D3: CIDADE
B4: =Orçamento!$O$4 -> CENTRO DE ENSINO EM PERÍODO INTEGRAL PEDRO XAVIER TEIXEIRA | D4: =Orçamento!$V$7 -> GOIÂNIA
B6: OBRA | D6: CRE
B7: =Orçamento!$O$7 -> REFORMA | D7: =Orçamento!$O$10 -> GOIÂNIA
B9: ENDEREÇO | D9: DATA
A10: FILTRO | B10: =Orçamento!$R$10 -> RUA 1027 Nº 70 70, SETOR PEDRO LUDOVICO, CEP:74825-040 | D10: =Orçamento!$S$7 -> 2020-03-25
B12: RELATÓRIO CENTRAL
A13: ↓ | B13: CÓDIGO | C13: ETAPA | D13: PREÇO (R$) C/ BDI | E13: PARTIC ( % )
A14: =IF(D14>0,"F","") ->  | B14: =Orçamento!O450 -> a. | C14: =Orçamento!P450 -> SERVIÇOS PRELIMINARES | D14: =Orçamento!V450 -> 0 | E14: =Orçamento!X450 -> 0
A15: =IF(D15>0,"F","") ->  | B15: =Orçamento!O451 -> b. | C15: =Orçamento!P451 -> TRANSPORTES | D15: =Orçamento!V451 -> 0 | E15: =Orçamento!X451 -> 0
B16: =Orçamento!O452 -> c. | C16: =Orçamento!P452 -> SERVIÇO EM TERRA | D16: =Orçamento!V452 -> 0 | E16: =Orçamento!X452 -> 0
B17: =Orçamento!O453 -> d. | C17: =Orçamento!P453 -> FUNDAÇÕES E SONDAGENS | D17: =Orçamento!V453 -> 0 | E17: =Orçamento!X453 -> 0
B18: =Orçamento!O454 -> e. | C18: =Orçamento!P454 -> ESTRUTURA | D18: =Orçamento!V454 -> 0 | E18: =Orçamento!X454 -> 0
B19: =Orçamento!O455 -> f. | C19: =Orçamento!P455 -> INSTALAÇÕES ELÉTRICAS | D19: =Orçamento!V455 -> 0 | E19: =Orçamento!X455 -> 0
B20: =Orçamento!O456 -> g. | C20: =Orçamento!P456 -> INSTALAÇÕES HIDROSSANITÁRIAS | D20: =Orçamento!V456 -> 0 | E20: =Orçamento!X456 -> 0
B21: =Orçamento!O457 -> h | C21: =Orçamento!P457 -> INSTALAÇÕES ESPECIAIS | D21: =Orçamento!V457 -> 0 | E21: =Orçamento!X457 -> 0
B22: =Orçamento!O458 -> i. | C22: =Orçamento!P458 -> ALVENARIAS E DIVISÓRIAS | D22: =Orçamento!V458 -> 0 | E22: =Orçamento!X458 -> 0
B23: =Orçamento!O459 -> j. | C23: =Orçamento!P459 -> ALVENARIA AUTO-PORTANTE | D23: =Orçamento!V459 -> 0 | E23: =Orçamento!X459 -> 0
B24: =Orçamento!O460 -> k. | C24: =Orçamento!P460 -> IMPERMEABILIZAÇÃO | D24: =Orçamento!V460 -> 0 | E24: =Orçamento!X460 -> 0
B25: =Orçamento!O461 -> l. | C25: =Orçamento!P461 -> ISOLAMENTO TÉRMICO E ACÚSTICO | D25: =Orçamento!V461 -> 0 | E25: =Orçamento!X461 -> 0
B26: =Orçamento!O462 -> m. | C26: =Orçamento!P462 -> ESTRUTURA DE MADEIRA | D26: =Orçamento!V462 -> 0 | E26: =Orçamento!X462 -> 0
B27: =Orçamento!O463 -> n. | C27: =Orçamento!P463 -> ESTRUTURAS METÁLICAS | D27: =Orçamento!V463 -> 0 | E27: =Orçamento!X463 -> 0
B28: =Orçamento!O464 -> o. | C28: =Orçamento!P464 -> COBERTURAS | D28: =Orçamento!V464 -> 0 | E28: =Orçamento!X464 -> 0
B29: =Orçamento!O465 -> p. | C29: =Orçamento!P465 -> ESQUADRIAS DE MADEIRA | D29: =Orçamento!V465 -> 0 | E29: =Orçamento!X465 -> 0
B30: =Orçamento!O466 -> q. | C30: =Orçamento!P466 -> ESQUADRIAS METÁLICAS | D30: =Orçamento!V466 -> 0 | E30: =Orçamento!X466 -> 0
B31: =Orçamento!O467 -> r. | C31: =Orçamento!P467 -> VIDROS | D31: =Orçamento!V467 -> 0 | E31: =Orçamento!X467 -> 0
B32: =Orçamento!O468 -> s. | C32: =Orçamento!P468 -> REVESTIMENTO DE PAREDE | D32: =Orçamento!V468 -> 0 | E32: =Orçamento!X468 -> 0
B33: =Orçamento!O469 -> t. | C33: =Orçamento!P469 -> FORROS | D33: =Orçamento!V469 -> 0 | E33: =Orçamento!X469 -> 0
B34: =Orçamento!O470 -> u. | C34: =Orçamento!P470 -> REVESTIMENTO DE PISO | D34: =Orçamento!V470 -> 0 | E34: =Orçamento!X470 -> 0
B35: =Orçamento!O471 -> v. | C35: =Orçamento!P471 -> FERRAGENS | D35: =Orçamento!V471 -> 0 | E35: =Orçamento!X471 -> 0
B36: =Orçamento!O472 -> w. | C36: =Orçamento!P472 -> MARCENARIA | D36: =Orçamento!V472 -> 0 | E36: =Orçamento!X472 -> 0
B37: =Orçamento!O473 -> x. | C37: =Orçamento!P473 -> ADMINISTRAÇÃO | D37: =Orçamento!V473 -> 0 | E37: =Orçamento!X473 -> 0
B38: =Orçamento!O474 -> y. | C38: =Orçamento!P474 -> PINTURA | D38: =Orçamento!V474 -> 0 | E38: =Orçamento!X474 -> 0
B39: =Orçamento!O475 -> z. | C39: =Orçamento!P475 -> DIVERSOS | D39: =Orçamento!V475 -> 0 | E39: =Orçamento!X475 -> 0
A40: F | B40: TOTAL GERAL DO ORÇAMENTO (R$) C/BDI | D40: =SUM(D14:D39) -> 0 | E40: =SUM(E14:E39) -> 0

Sheet Parc Maior Relev
B3: UNIDADE ESCOLAR | E3: CÓDIGO INEP
B4: =Orçamento!$O$4 -> CENTRO DE ENSINO EM PERÍODO INTEGRAL PEDRO XAVIER TEIXEIRA | E4: =Orçamento!$V$4 -> 52033562
B6: OBRA | E6: CIDADE
B7: =Orçamento!$O$7 -> REFORMA | E7: =Orçamento!$V$7 -> GOIÂNIA
B9: CRE | E9: ÁREA TOTAL CONSTRUÍDA (M²)
B10: =Orçamento!$O$10 -> GOIÂNIA | E10: =Orçamento!$S$13 -> 4083.99
A11: FILTRO
B12: PARCELA DE MAIOR RELEVÂNCIA
B13: CÓDIGO | C13: SERVIÇO | D13: DESCRIÇÃO | E13: UNID | F13: QUANT | G13: PARC. MAIOR RELEV (50%)
A14: =IF(F14>0,"F","") ->  | B14: 70000 | C14: INSTALAÇÕES ELÉTRICAS | D14: INSTALAÇÕES ELÉTRICAS | E14: KVA | F14: =SUMIF(Orçamento!$R$20:$R$431,'Parc Maior Relev'!D14,Orçamento!$T$20:$T$431) -> 0 | G14: =F14*0.5 -> 0
B15: 70000 | C15: INSTALAÇÕES ELÉTRICAS | D15: SUBESTAÇÃO | E15: KVA | F15: =SUMIF(Orçamento!$R$20:$R$431,'Parc Maior Relev'!D15,Orçamento!$T$20:$T$431) -> 0 | G15: =F15*0.5 -> 0 | H15: 1
B16: 80000 | C16: INSTALAÇÕES HIDROSSANITÁRIAS | D16: RESERVATÓRIO | E16: UNID | F16: =SUMIF(Orçamento!$R$20:$R$431,'Parc Maior Relev'!D16,Orçamento!$T$20:$T$431) -> 0 | G16: =F16*0.5 -> 0 | H16: 1
B17: 160000 | C17: COBERTURAS | D17: TELHA CERÂMICA | E17: M2 | F17: =SUMIF(Orçamento!$R$20:$R$431,'Parc Maior Relev'!D17,Orçamento!$T$20:$T$431) -> 0 | G17: =F17*0.5 -> 0
B18: 160000 | C18: COBERTURAS | D18: TELHA FIBROCIMENTO | E18: M2 | F18: =SUMIF(Orçamento!$R$20:$R$431,'Parc Maior Relev'!D18,Orçamento!$T$20:$T$431) -> 0 | G18: 0
B19: 160000 | C19: COBERTURAS | D19: TELHA METÁLICA | E19: M2 | F19: =SUMIF(Orçamento!$R$20:$R$431,'Parc Maior Relev'!D19,Orçamento!$T$20:$T$431) -> 0 | G19: 0
B20: 200000 | C20: REVESTIMENTO DE PAREDE | D20: REBOCO | E20: M2 | F20: =SUMIF(Orçamento!$R$20:$R$431,'Parc Maior Relev'!D20,Orçamento!$T$20:$T$431) -> 0 | G20: =F20*0.5 -> 0
B21: 200000 | C21: REVESTIMENTO DE PAREDE | D21: REVESTIMENTO CERÂMICO | E21: M2 | F21: =SUMIF(Orçamento!$R$20:$R$431,'Parc Maior Relev'!D21,Orçamento!$T$20:$T$431) -> 0 | G21: =F21*0.5 -> 0
B22: 210000 | C22: FORROS | D22: FORRO DE GESSO | E22: M2 | F22: =SUMIF(Orçamento!$R$20:$R$431,'Parc Maior Relev'!D22,Orçamento!$T$20:$T$431) -> 0 | G22: =F22*0.5 -> 0
B23: 210000 | C23: FORROS | D23: FORRO PVC | E23: M2 | F23: =SUMIF(Orçamento!$R$20:$R$431,'Parc Maior Relev'!D23,Orçamento!$T$20:$T$431) -> 0 | G23: =F23*0.5 -> 0
B24: 210000 | C24: FORROS | D24: FORRO ACARTONADO | E24: M2 | F24: =SUMIF(Orçamento!$R$20:$R$431,'Parc Maior Relev'!D24,Orçamento!$T$20:$T$431) -> 0 | G24: =F24*0.5 -> 0
B25: o. | C25: COBERTURAS | D25: COBERTURA CERÂMICA | E25: M2 | F25: =1242.51 -> 1242.51 | G25: 621.255
B26: =Somatório!B37 -> u. | C26: REVESTIMENTO DE PISO | D26: PISO CONCRETO DESEMPENADO | E26: M2 | F26: =Orçamento!T386 -> 1900.85 | G26: 950.425
A27: F
A28: F | B28: (*) Para os fins do inciso I dp § 1º do Art. 30 da Lei Federal 8.666/93, são consideradas parcelas de maior relevância técnica as execuções apresentadas
A29: F

Sheet Composições
A4: UNIDADE ESCOLAR | H4: CÓDIGO INEP
A5: =Orçamento!$O$4 -> CENTRO DE ENSINO EM PERÍODO INTEGRAL PEDRO XAVIER TEIXEIRA | H5: =Orçamento!$V$4 -> 52033562
A7: OBRA | H7: CIDADE
A8: =Orçamento!$O$7 -> REFORMA | H8: =Orçamento!$V$7 -> GOIÂNIA
A10: CRE | D10: ENDEREÇO | H10: REFERÊNCIA AGETOP
A11: =Orçamento!$O$10 -> GOIÂNIA | D11: =Orçamento!$R$10 -> RUA 1027 Nº 70 70, SETOR PEDRO LUDOVICO, CEP:74825-040 | H11: =Orçamento!$V$10 -> DEZ/18 | I11: =Orçamento!$W$10 -> ONERADA
A13: DATA | D13: ÁREA TOTAL CONSTRUÍDA (M²) | H13: REFERÊNCIA SINAPI
A14: =Orçamento!$S$7 -> 2020-03-25 | D14: =Orçamento!$S$13 -> 4083.99 | H14: =Orçamento!$V$13 -> AGO/19 | I14: =Orçamento!$W$13 -> ONERADA
A16: COMPOSIÇÕES DE CUSTOS UNITÁRIOS - SEE-GO
A17: 46 | B17: FONTE | C17: CÓDIGO | D17: DESCRIÇÃO | E17: UNIDADE | F17: COEFIC. | G17: CUSTO UNITÁRIO | I17: CUSTO TOTAL (A) + (B) + (C) + (D) + (E)
G18: DESONERADO | H18: NÃO DESONER. | I18: DESONERADO | J18: NÃO DESONER.
B19: COMPOSIÇÃO | C19: COMP 046_SEE | D19: CAPUZ PARA PROTEÇÃO DOS PARA RAIOS | E19: UN | I19: 16.53 | J19: 16.65
B20: AGETOP_I | C20: 8 | D20: AJUDANTE | E20: h | F20: 0.0333 | G20: 8.2 | H20: 9.51 | I20: 0.27 | J20: 0.32
B21: AGETOP_I | C21: 12 | D21: ELETRICISTA | E21: h | F21: 0.0333 | G21: 13.4 | H21: 15.53 | I21: 0.45 | J21: 0.52
G22: 0 | H22: 0 | I22: 0 | J22: 0
B23: MÃO DE OBRA (B) - TOTAL | I23: 0.72 | J23: 0.84
B24: COTAÇÃO | C24: COT 010_SEE | D24: CAPUZ PARA PROTEÇÃO DOS PARA RAIOS | E24: UN | F24: 1 | G24: 15.81 | H24: 15.81 | I24: 15.81 | J24: 15.81
G25: 0 | H25: 0 | I25: 0 | J25: 0
G26: 0 | H26: 0 | I26: 0 | J26: 0
B27: MATERIAL (C) - TOTAL | I27: 15.81 | J27: 15.81
A29: 47 | B29: FONTE | C29: CÓDIGO | D29: DESCRIÇÃO | E29: UNIDADE | F29: COEFIC. | G29: CUSTO UNITÁRIO | I29: CUSTO TOTAL (A) + (B) + (C) + (D) + (E)
G30: DESONERADO | H30: NÃO DESONER. | I30: DESONERADO | J30: NÃO DESONER.
B31: COMPOSIÇÃO | C31: COMP 047_SEE | D31: CAPUZ DE PROTEÇÃO PARA BUCHA DE TRANSFORMADOR | E31: UN | I31: 16.53 | J31: 16.65
B32: AGETOP_I | C32: 8 | D32: AJUDANTE | E32: h | F32: 0.0333 | G32: 8.2 | H32: 9.51 | I32: 0.27 | J32: 0.32
B33: AGETOP_I | C33: 12 | D33: ELETRICISTA | E33: h | F33: 0.0333 | G33: 13.4 | H33: 15.53 | I33: 0.45 | J33: 0.52
G34: 0 | H34: 0 | I34: 0 | J34: 0
B35: MÃO DE OBRA (B) - TOTAL | I35: 0.72 | J35: 0.84
B36: COTAÇÃO | C36: COT 011_SEE | D36: CAPUZ DE PROTEÇÃO PARA BUCHA DE TRANSFORMADOR | E36: UN | F36: 1 | G36: 15.81 | H36: 15.81 | I36: 15.81 | J36: 15.81
G37: 0 | H37: 0 | I37: 0 | J37: 0
G38: 0 | H38: 0 | I38: 0 | J38: 0
B39: MATERIAL (C) - TOTAL | I39: 15.81 | J39: 15.81
A41: 48 | B41: FONTE | C41: CÓDIGO | D41: DESCRIÇÃO | E41: UNIDADE | F41: COEFIC. | G41: CUSTO UNITÁRIO | I41: CUSTO TOTAL (A) + (B) + (C) + (D) + (E)
G42: DESONERADO | H42: NÃO DESONER. | I42: DESONERADO | J42: NÃO DESONER.
B43: COMPOSIÇÃO | C43: COMP 048_SEE | D43: HASTE ROSQUEADA "TIRANTE" 3/8" | E43: M | I43: 14.02 | J43: 15.39
B44: AGETOP_I | C44: 8 | D44: AJUDANTE | E44: h | F44: 0.4 | G44: 8.2 | H44: 9.51 | I44: 3.28 | J44: 3.8
B45: AGETOP_I | C45: 12 | D45: ELETRICISTA | E45: h | F45: 0.4 | G45: 13.4 | H45: 15.53 | I45: 5.36 | J45: 6.21
G46: 0 | H46: 0 | I46: 0 | J46: 0
B47: MÃO DE OBRA (B) - TOTAL | I47: 8.64 | J47: 10.01
B48: COTAÇÃO | C48: COT 012_SEE | D48: HASTE ROSQUEADA "TIRANTE" 3/8" | E48: M | F48: 1 | G48: 5.383333333 | H48: 5.383333333 | I48: 5.38 | J48: 5.38
G49: 0 | H49: 0 | I49: 0 | J49: 0
G50: 0 | H50: 0 | I50: 0 | J50: 0
B51: MATERIAL (C) - TOTAL | I51: 5.38 | J51: 5.38
A53: 49 | B53: FONTE | C53: CÓDIGO | D53: DESCRIÇÃO | E53: UNIDADE | F53: COEFIC. | G53: CUSTO UNITÁRIO | I53: CUSTO TOTAL (A) + (B) + (C) + (D) + (E)
G54: DESONERADO | H54: NÃO DESONER. | I54: DESONERADO | J54: NÃO DESONER.
B55: COMPOSIÇÃO | C55: COMP 049_SEE | D55: PORCA SEXTAVADA 3/8" | E55: UN | I55: 0.2 | J55: 0.22
B56: AGETOP_I | C56: 8 | D56: AJUDANTE | E56: h | F56: 0.009 | G56: 8.2 | H56: 9.51 | I56: 0.07 | J56: 0.09
G57: 0 | H57: 0 | I57: 0 | J57: 0
G58: 0 | H58: 0 | I58: 0 | J58: 0
B59: MÃO DE OBRA (B) - TOTAL | I59: 0.07 | J59: 0.09
B60: COTAÇÃO | C60: COT 013_SEE | D60: PORCA SEXTAVADA 3/8" | E60: UN | F60: 1 | G60: 0.13 | H60: 0.13 | I60: 0.13 | J60: 0.13
G61: 0 | H61: 0 | I61: 0 | J61: 0
G62: 0 | H62: 0 | I62: 0 | J62: 0
B63: MATERIAL (C) - TOTAL | I63: 0.13 | J63: 0.13
A65: 387 | B65: FONTE | C65: CÓDIGO | D65: DESCRIÇÃO | E65: UNIDADE | F65: COEFIC. | G65: CUSTO UNITÁRIO | I65: CUSTO TOTAL (A) + (B) + (C) + (D) + (E)
G66: DESONERADO | H66: NÃO DESONER. | I66: DESONERADO | J66: NÃO DESONER.
B67: COMPOSIÇÃO | C67: COMP 387_SEE | D67: LÂMPADA LED TUBULAR 18W | E67: UN | I67: 22.28 | J67: 22.33
B68: AGETOP_I | C68: 8 | D68: AJUDANTE | E68: h | F68: 0.015 | G68: 8.2 | H68: 9.51 | I68: 0.12 | J68: 0.14
B69: AGETOP_I | C69: 12 | D69: ELETRICISTA | E69: h | F69: 0.015 | G69: 13.4 | H69: 15.53 | I69: 0.2 | J69: 0.23
G70: 0 | H70: 0 | I70: 0 | J70: 0
B71: MÃO DE OBRA (B) - TOTAL | I71: 0.32 | J71: 0.37
B72: COTAÇÃO | C72: COT 195_SEE | D72: LÂMPADA LED TUBULAR 18W | E72: UN | F72: 1 | G72: 21.96 | H72: 21.96 | I72: 21.96 | J72: 21.96
G73: 0 | H73: 0 | I73: 0 | J73: 0
G74: 0 | H74: 0 | I74: 0 | J74: 0
B75: MATERIAL (C) - TOTAL | I75: 21.96 | J75: 21.96
A77: 382 | B77: FONTE | C77: CÓDIGO | D77: DESCRIÇÃO | E77: UNIDADE | F77: COEFIC. | G77: CUSTO UNITÁRIO | I77: CUSTO TOTAL (A) + (B) + (C) + (D) + (E)
G78: DESONERADO | H78: NÃO DESONER. | I78: DESONERADO | J78: NÃO DESONER.
B79: COMPOSIÇÃO | C79: COMP 382_SEE | D79: TE DE REDUCAO DE FERRO GALVANIZADO, COM ROSCA BSP, DE 3/4" X 1/2" | E79: UN | I79: 21.93 | J79: 24.02
B80: AGETOP_I | C80: 8 | D80: AJUDANTE | E80: h | F80: 0.6 | G80: 8.2 | H80: 9.51 | I80: 4.92 | J80: 5.71
B81: AGETOP_I | C81: 11 | D81: ENCANADOR | E81: h | F81: 0.6105 | G81: 13.4 | H81: 15.53 | I81: 8.18 | J81: 9.48
G82: 0 | H82: 0 | I82: 0 | J82: 0
B83: MÃO DE OBRA (B) - TOTAL | I83: 13.1 | J83: 15.19
B84: SINAPI_I | C84: 3146 | D84: FITA VEDA ROSCA EM ROLOS DE 18 MM X 10 M (L X C) | E84: UN | F84: 0.120754717 | G84: 3.9 | H84: 3.9 | I84: 0.47 | J84: 0.47
B85: SINAPI_I | C85: 6302 | D85: TE DE REDUCAO DE FERRO GALVANIZADO, COM ROSCA BSP, DE 3/4" X 1/2" | E85: UN | F85: 1 | G85: 8.36 | H85: 8.36 | I85: 8.36 | J85: 8.36
G86: 0 | H86: 0 | I86: 0 | J86: 0
B87: MATERIAL (C) - TOTAL | I87: 8.83 | J87: 8.83
A89: 383 | B89: FONTE | C89: CÓDIGO | D89: DESCRIÇÃO | E89: UNIDADE | F89: COEFIC. | G89: CUSTO UNITÁRIO | I89: CUSTO TOTAL (A) + (B) + (C) + (D) + (E)
G90: DESONERADO | H90: NÃO DESONER. | I90: DESONERADO | J90: NÃO DESONER.
B91: COMPOSIÇÃO | C91: COMP 383_SEE | D91: BUCHA DE REDUCAO DE FERRO GALVANIZADO, COM ROSCA BSP, DE 1/2" X 1/4" | E91: UN | I91: 6.87 | J91: 7.42
B92: AGETOP_I | C92: 8 | D92: AJUDANTE | E92: h | F92: 0.16 | G92: 8.2 | H92: 9.51 | I92: 1.31 | J92: 1.52
B93: AGETOP_I | C93: 11 | D93: ENCANADOR | E93: h | F93: 0.16 | G93: 13.4 | H93: 15.53 | I93: 2.14 | J93: 2.48
G94: 0 | H94: 0 | I94: 0 | J94: 0
B95: MÃO DE OBRA (B) - TOTAL | I95: 3.45 | J95: 4
B96: AGETOP_I | C96: H689 | D96: FITA VEDAROSCA 12 MM | E96: m | F96: 1.2 | G96: 0.28 | H96: 0.28 | I96: 0.34 | J96: 0.34
B97: SINAPI_I | C97: 770 | D97: BUCHA DE REDUCAO DE FERRO GALVANIZADO, COM ROSCA BSP, DE 1/2" X 1/4" | E97: UN | F97: 1 | G97: 3.08 | H97: 3.08 | I97: 3.08 | J97: 3.08
G98: 0 | H98: 0 | I98: 0 | J98: 0
B99: MATERIAL (C) - TOTAL | I99: 3.42 | J99: 3.42
A101: 212 | B101: FONTE | C101: CÓDIGO | D101: DESCRIÇÃO | E101: UNIDADE | F101: COEFIC. | G101: CUSTO UNITÁRIO | I101: CUSTO TOTAL (A) + (B) + (C) + (D) + (E)
G102: DESONERADO | H102: NÃO DESONER. | I102: DESONERADO | J102: NÃO DESONER.
B103: COMPOSIÇÃO | C103: COMP 212_SEE | D103: NIPLE DE REDUÇÃO 1/2" X 1/4" BSP | E103: UN | I103: 9.5 | J103: 10.05
B104: AGETOP_I | C104: 8 | D104: AJUDANTE | E104: h | F104: 0.16 | G104: 8.2 | H104: 9.51 | I104: 1.31 | J104: 1.52
B105: AGETOP_I | C105: 11 | D105: ENCANADOR | E105: h | F105: 0.16 | G105: 13.4 | H105: 15.53 | I105: 2.14 | J105: 2.48
G106: 0 | H106: 0 | I106: 0 | J106: 0
B107: MÃO DE OBRA (B) - TOTAL | I107: 3.45 | J107: 4
B108: COTAÇÃO | C108: COT 103_SEE | D108: NIPLE DE REDUÇÃO 1/2" X 1/4" BSP | E108: UN | F108: 1 | G108: 6.053333333 | H108: 6.053333333 | I108: 6.05 | J108: 6.05
G109: 0 | H109: 0 | I109: 0 | J109: 0
G110: 0 | H110: 0 | I110: 0 | J110: 0
B111: MATERIAL (C) - TOTAL | I111: 6.05 | J111: 6.05
A113: 213 | B113: FONTE | C113: CÓDIGO | D113: DESCRIÇÃO | E113: UNIDADE | F113: COEFIC. | G113: CUSTO UNITÁRIO | I113: CUSTO TOTAL (A) + (B) + (C) + (D) + (E)
G114: DESONERADO | H114: NÃO DESONER. | I114: DESONERADO | J114: NÃO DESONER.
B115: COMPOSIÇÃO | C115: COMP 213_SEE | D115: NIPLE DE REDUÇÃO 3/4" X 1/2" BSP | E115: UN | I115: 13.16 | J115: 13.71
B116: AGETOP_I | C116: 8 | D116: AJUDANTE | E116: h | F116: 0.16 | G116: 8.2 | H116: 9.51 | I116: 1.31 | J116: 1.52
B117: AGETOP_I | C117: 11 | D117: ENCANADOR | E117: h | F117: 0.16 | G117: 13.4 | H117: 15.53 | I117: 2.14 | J117: 2.48
G118: 0 | H118: 0 | I118: 0 | J118: 0
B119: MÃO DE OBRA (B) - TOTAL | I119: 3.45 | J119: 4
B120: COTAÇÃO | C120: COT 104_SEE | D120: NIPLE DE REDUÇÃO 3/4" X 1/2" BSP | E120: UN | F120: 1 | G120: 9.71 | H120: 9.71 | I120: 9.71 | J120: 9.71
G121: 0 | H121: 0 | I121: 0 | J121: 0
G122: 0 | H122: 0 | I122: 0 | J122: 0
B123: MATERIAL (C) - TOTAL | I123: 9.71 | J123: 9.71
A125: 237 | B125: FONTE | C125: CÓDIGO | D125: DESCRIÇÃO | E125: UNIDADE | F125: COEFIC. | G125: CUSTO UNITÁRIO | I125: CUSTO TOTAL (A) + (B) + (C) + (D) + (E)
G126: DESONERADO | H126: NÃO DESONER. | I126: DESONERADO | J126: NÃO DESONER.
B127: COMPOSIÇÃO | C127: COMP 237_SEE | D127: FITA ANTICORROSIVA | E127: M | I127: 11.92 | J127: 12.61
B128: AGETOP_I | C128: 8 | D128: AJUDANTE | E128: h | F128: 0.2 | G128: 8.2 | H128: 9.51 | I128: 1.64 | J128: 1.9
B129: AGETOP_I | C129: 12 | D129: ELETRICISTA | E129: h | F129: 0.2 | G129: 13.4 | H129: 15.53 | I129: 2.68 | J129: 3.11
G130: 0 | H130: 0 | I130: 0 | J130: 0
B131: MÃO DE OBRA (B) - TOTAL | I131: 4.32 | J131: 5.01
B132: SINAPI_I | C132: 39634 | D132: FITA ADESIVA ANTICORROSIVA DE PVC FLEXIVEL, COR PRETA, PARA PROTECAO TUBULACAO, 50 MM X 30 M (L X C), E= *0,25* MM | E132: M | F132: 1 | G132: 7.6 | H132: 7.6 | I132: 7.6 | J132: 7.6
G133: 0 | H133: 0 | I133: 0 | J133: 0
G134: 0 | H134: 0 | I134: 0 | J134: 0
B135: MATERIAL (C) - TOTAL | I135: 7.6 | J135: 7.6
A137: 542 | B137: FONTE | C137: CÓDIGO | D137: DESCRIÇÃO | E137: UNIDADE | F137: COEFIC. | G137: CUSTO UNITÁRIO | I137: CUSTO TOTAL (A) + (B) + (C) + (D) + (E)
G138: DESONERADO | H138: NÃO DESONER. | I138: DESONERADO | J138: NÃO DESONER.
B139: COMPOSIÇÃO | C139: COMP 542_SEE | D139: VÁLVULA UGV 3/4" (S) LATÃO | E139: UN | I139: 25.17 | J139: 26.66
B140: AGETOP_I | C140: 8 | D140: AJUDANTE | E140: h | F140: 0.432 | G140: 8.2 | H140: 9.51 | I140: 3.54 | J140: 4.11
B141: AGETOP_I | C141: 11 | D141: ENCANADOR | E141: h | F141: 0.432 | G141: 13.4 | H141: 15.53 | I141: 5.79 | J141: 6.71
G142: 0 | H142: 0 | I142: 0 | J142: 0
B143: MÃO DE OBRA (B) - TOTAL | I143: 9.33 | J143: 10.82
B144: COTAÇÃO | C144: COT 281_SEE | D144: VÁLVULA UGV 3/4" (S) LATÃO | E144: UN | F144: 1 | G144: 15.83666667 | H144: 15.83666667 | I144: 15.84 | J144: 15.84
G145: 0 | H145: 0 | I145: 0 | J145: 0
G146: 0 | H146: 0 | I146: 0 | J146: 0
B147: MATERIAL (C) - TOTAL | I147: 15.84 | J147: 15.84
A149: 543 | B149: FONTE | C149: CÓDIGO | D149: DESCRIÇÃO | E149: UNIDADE | F149: COEFIC. | G149: CUSTO UNITÁRIO | I149: CUSTO TOTAL (A) + (B) + (C) + (D) + (E)
G150: DESONERADO | H150: NÃO DESONER. | I150: DESONERADO | J150: NÃO DESONER.
B151: COMPOSIÇÃO | C151: COMP 543_SEE | D151: VÁLVULA UGV 1/2" (S) LATÃO | E151: UN | I151: 24.5 | J151: 25.99
B152: AGETOP_I | C152: 8 | D152: AJUDANTE | E152: h | F152: 0.432 | G152: 8.2 | H152: 9.51 | I152: 3.54 | J152: 4.11
B153: AGETOP_I | C153: 11 | D153: ENCANADOR | E153: h | F153: 0.432 | G153: 13.4 | H153: 15.53 | I153: 5.79 | J153: 6.71
G154: 0 | H154: 0 | I154: 0 | J154: 0
B155: MÃO DE OBRA (B) - TOTAL | I155: 9.33 | J155: 10.82
B156: COTAÇÃO | C156: COT 282_SEE | D156: VÁLVULA UGV 1/2" (S) LATÃO | E156: UN | F156: 1 | G156: 15.16666667 | H156: 15.16666667 | I156: 15.17 | J156: 15.17
G157: 0 | H157: 0 | I157: 0 | J157: 0
G158: 0 | H158: 0 | I158: 0 | J158: 0
B159: MATERIAL (C) - TOTAL | I159: 15.17 | J159: 15.17
A161: 211 | B161: FONTE | C161: CÓDIGO | D161: DESCRIÇÃO | E161: UNIDADE | F161: COEFIC. | G161: CUSTO UNITÁRIO | I161: CUSTO TOTAL (A) + (B) + (C) + (D) + (E)
G162: DESONERADO | H162: NÃO DESONER. | I162: DESONERADO | J162: NÃO DESONER.
B163: COMPOSIÇÃO | C163: COMP 211_SEE | D163: REGULADOR DE 2º ESTÁGIO 5KG/H | E163: UN | I163: 85.46 | J163: 89.42
B164: AGETOP_I | C164: 8 | D164: AJUDANTE | E164: h | F164: 1.15 | G164: 8.2 | H164: 9.51 | I164: 9.43 | J164: 10.94
B165: AGETOP_I | C165: 11 | D165: ENCANADOR | E165: h | F165: 1.15 | G165: 13.4 | H165: 15.53 | I165: 15.41 | J165: 17.86
G166: 0 | H166: 0 | I166: 0 | J166: 0
B167: MÃO DE OBRA (B) - TOTAL | I167: 24.84 | J167: 28.8
B168: COTAÇÃO | C168: COT 102_SEE | D168: REGULADOR DE 2º ESTÁGIO 5KG/H | E168: UN | F168: 1 | G168: 59.83333333 | H168: 59.83333333 | I168: 59.83 | J168: 59.83
B169: AGETOP_I | C169: H689 | D169: FITA VEDAROSCA 12 MM | E169: m | F169: 2.82 | G169: 0.28 | H169: 0.28 | I169: 0.79 | J169: 0.79
G170: 0 | H170: 0 | I170: 0 | J170: 0
B171: MATERIAL (C) - TOTAL | I171: 60.62 | J171: 60.62
A173: 210 | B173: FONTE | C173: CÓDIGO | D173: DESCRIÇÃO | E173: UNIDADE | F173: COEFIC. | G173: CUSTO UNITÁRIO | I173: CUSTO TOTAL (A) + (B) + (C) + (D) + (E)
G174: DESONERADO | H174: NÃO DESONER. | I174: DESONERADO | J174: NÃO DESONER.
B175: COMPOSIÇÃO | C175: COMP 210_SEE | D175: REGULADOR DE 1º ESTÁGIO 60KG/H MODELO AP-40 COM MANÔMETRO | E175: UN | I175: 231.21 | J175: 235.17
B176: AGETOP_I | C176: 8 | D176: AJUDANTE | E176: h | F176: 1.15 | G176: 8.2 | H176: 9.51 | I176: 9.43 | J176: 10.94
B177: AGETOP_I | C177: 11 | D177: ENCANADOR | E177: h | F177: 1.15 | G177: 13.4 | H177: 15.53 | I177: 15.41 | J177: 17.86
G178: 0 | H178: 0 | I178: 0 | J178: 0
B179: MÃO DE OBRA (B) - TOTAL | I179: 24.84 | J179: 28.8
B180: COTAÇÃO | C180: COT 101_SEE | D180: REGULADOR DE 1º ESTÁGIO 60KG/H MODELO AP-40 COM MANÔMETRO | E180: UN | F180: 1 | G180: 205.5766667 | H180: 205.5766667 | I180: 205.58 | J180: 205.58
B181: AGETOP_I | C181: H689 | D181: FITA VEDAROSCA 12 MM | E181: m | F181: 2.82 | G181: 0.28 | H181: 0.28 | I181: 0.79 | J181: 0.79
G182: 0 | H182: 0 | I182: 0 | J182: 0
B183: MATERIAL (C) - TOTAL | I183: 206.37 | J183: 206.37
A185: 235 | B185: FONTE | C185: CÓDIGO | D185: DESCRIÇÃO | E185: UNIDADE | F185: COEFIC. | G185: CUSTO UNITÁRIO | I185: CUSTO TOTAL (A) + (B) + (C) + (D) + (E)
G186: DESONERADO | H186: NÃO DESONER. | I186: DESONERADO | J186: NÃO DESONER.
B187: COMPOSIÇÃO | C187: COMP 235_SEE | D187: PLACA DE SINALIZAÇÃO EM PVC COD 01 - (300X300) PROIBIDO FUMAR | E187: UN | I187: 24.11 | J187: 24.23
B188: AGETOP_I | C188: 5 | D188: SERVENTE | E188: h | F188: 0.09 | G188: 8.2 | H188: 9.51 | I188: 0.74 | J188: 0.86
G189: 0 | H189: 0 | I189: 0 | J189: 0
G190: 0 | H190: 0 | I190: 0 | J190: 0
B191: MÃO DE OBRA (B) - TOTAL | I191: 0.74 | J191: 0.86
B192: AGETOP_I | C192: 3070 | D192: BUCHA DE NYLON S-6 | E192: un | F192: 2 | G192: 0.04 | H192: 0.04 | I192: 0.08 | J192: 0.08
B193: AGETOP_I | C193: 3393 | D193: PARAFUSO P/BUCHA S-6 | E193: un | F193: 2 | G193: 0.08 | H193: 0.08 | I193: 0.16 | J193: 0.16
B194: SINAPI_I | C194: 37556 | D194: PLACA DE SINALIZACAO DE SEGURANCA CONTRA INCENDIO, FOTOLUMINESCENTE, QUADRADA, *20 X 20* CM, EM PVC *2* MM ANTI-CHAMAS (SIMBOLOS, CORES E PICTOGRAMAS CONFORME NBR 13434) | E194: UN | F194: 1 | G194: 23.13 | H194: 23.13 | I194: 23.13 | J194: 23.13
B195: MATERIAL (C) - TOTAL | I195: 23.37 | J195: 23.37
A197: 236 | B197: FONTE | C197: CÓDIGO | D197: DESCRIÇÃO | E197: UNIDADE | F197: COEFIC. | G197: CUSTO UNITÁRIO | I197: CUSTO TOTAL (A) + (B) + (C) + (D) + (E)
G198: DESONERADO | H198: NÃO DESONER. | I198: DESONERADO | J198: NÃO DESONER.
B199: COMPOSIÇÃO | C199: COMP 236_SEE | D199: PLACA DE SINALIZAÇÃO EM PVC COD 06 - (300X300) PERIGO INFLAMÁVEL | E199: UN | I199: 24.11 | J199: 24.23
B200: AGETOP_I | C200: 5 | D200: SERVENTE | E200: h | F200: 0.09 | G200: 8.2 | H200: 9.51 | I200: 0.74 | J200: 0.86
G201: 0 | H201: 0 | I201: 0 | J201: 0
G202: 0 | H202: 0 | I202: 0 | J202: 0
B203: MÃO DE OBRA (B) - TOTAL | I203: 0.74 | J203: 0.86
B204: AGETOP_I | C204: 3070 | D204: BUCHA DE NYLON S-6 | E204: un | F204: 2 | G204: 0.04 | H204: 0.04 | I204: 0.08 | J204: 0.08
B205: AGETOP_I | C205: 3393 | D205: PARAFUSO P/BUCHA S-6 | E205: un | F205: 2 | G205: 0.08 | H205: 0.08 | I205: 0.16 | J205: 0.16
B206: SINAPI_I | C206: 37556 | D206: PLACA DE SINALIZACAO DE SEGURANCA CONTRA INCENDIO, FOTOLUMINESCENTE, QUADRADA, *20 X 20* CM, EM PVC *2* MM ANTI-CHAMAS (SIMBOLOS, CORES E PICTOGRAMAS CONFORME NBR 13434) | E206: UN | F206: 1 | G206: 23.13 | H206: 23.13 | I206: 23.13 | J206: 23.13
B207: MATERIAL (C) - TOTAL | I207: 23.37 | J207: 23.37
A209: 7 | B209: FONTE | C209: CÓDIGO | D209: DESCRIÇÃO | E209: UNIDADE | F209: COEFIC. | G209: CUSTO UNITÁRIO | I209: CUSTO TOTAL (A) + (B) + (C) + (D) + (E)
G210: DESONERADO | H210: NÃO DESONER. | I210: DESONERADO | J210: NÃO DESONER.
B211: COMPOSIÇÃO | C211: COMP 007_SEE | D211: GUICHÊ CANTONEIRA/GRADE PARA VIDRO | E211: M² | F211: - | G211: - | H211: - | I211: 227.67 | J211: 234.31
B212: AGETOP_I | C212: 4 | D212: PEDREIRO | E212: h | F212: 2.5 | G212: 13.4 | H212: 15.53 | I212: 33.5 | J212: 38.83
B213: AGETOP_I | C213: 5 | D213: SERVENTE | E213: h | F213: 1 | G213: 8.2 | H213: 9.51 | I213: 8.2 | J213: 9.51
B214: MÃO DE OBRA (B) - TOTAL | I214: 41.7 | J214: 48.34
B215: AGETOP_I | C215: 104 | D215: AREIA MEDIA | E215: m3 | F215: 0.0097 | G215: 82.85 | H215: 82.85 | I215: 0.8 | J215: 0.8
B216: AGETOP_I | C216: 1221 | D216: CAL HIDRATADA | E216: Kg | F216: 0.73 | G216: 0.54 | H216: 0.54 | I216: 0.39 | J216: 0.39
B217: AGETOP_I | C217: 1215 | D217: CIMENTO PORTLAND C.P. 32 | E217: Kg | F217: 2.67 | G217: 0.39 | H217: 0.39 | I217: 1.04 | J217: 1.04
B218: AGETOP_I | C218: 2470 | D218: FERRO CANTONEIRA 1/8" X 7/8" | E218: Kg | F218: 3.5478 | G218: 4.39 | H218: 4.39 | I218: 15.57 | J218: 15.57
B219: AGETOP_I | C219: 2423 | D219: FERRO CANTONEIRA 1/8" X 3/4" | E219: Kg | F219: 7.939 | G219: 4.87 | H219: 4.87 | I219: 38.66 | J219: 38.66
B220: AGETOP_I | C220: 2372 | D220: CHAPA PERFILADA No. 18 | E220: Kg | F220: 13.3206 | G220: 5.42 | H220: 5.42 | I220: 72.2 | J220: 72.2
B221: SINAPI_I | C221: 11552 | D221: PERFIL U / CANALETA DE ALUMINIO, DE ABAS IGUAIS, 1/2" (1,27 X 1,27 CM), PARA PORTA OU JANELA DE CORRER | E221: M | F221: 1.306 | G221: 7.84 | H221: 7.84 | I221: 10.24 | J221: 10.24
B222: AGETOP_I | C222: 2898 | D222: FABRICAÇÃO / MONTAGEM | E222: un | F222: 1 | G222: 36.73 | H222: 36.73 | I222: 36.73 | J222: 36.73
B223: AGETOP_I | C223: 2529 | D223: FECHO FIO REDONDO 4" ZINCADO C/PARAFUSO DA SOPRANO OU EQUIVALENTE | E223: un | F223: 2 | G223: 5.17 | H223: 5.17 | I223: 10.34 | J223: 10.34
... 1 more rows
